Workbook

Sheet MATRIZ DE INDICADORES
D2: MACROPROCESO ESTRATÉGICO | S2: CÓDIGO: ESGr027
D3: PROCESO GESTIÓN SISTEMAS INTEGRADOS - CALIDAD | S3: VERSIÓN: 8
D4: MATRIZ DE MEDICIÓN Y SEGUIMIENTO A LOS PROCESOS DE GESTIÓN | S4: VIGENCIA: 2023-07-28
S5: PÁGINA: 1 de 7
Q7: FECHA DE ACTUALIZACIÓN: | S7: AÑO | T7: MES | U7: DÍA
S8: 2024 | T8: 7 | U8: 12
B10: ALINEACIÓN DE LOS INDICADORES CON LOS DOCUMENTOS ESTRATÉGICOS Y LOS OBJETIVOS DE CALIDAD
B12: PROCESO GESTIÓN | C12: FRENTES DEL PLAN ESTRATÉGICO | D12: LINEAMIENTOS DE LA POLÍTICA DE CALIDAD | E12: OBJETIVOS DE CALIDAD | F12: OBJETIVO GENERAL DEL PROCESO | G12: OBJETIVOS ESPECÍFICOS | H12: NOMBRE INDICADOR | I12: FÓRMULA | J12: TIPO DE INDICADOR | K12: SEGUIMIENTO MEDICIÓN | L12: META | M12: ACTIVIDAD | N12: RESPONSABLE DE LA ACTIVIDAD | O12: ¿QUÉ RECURSOS SE REQUIEREN? | P12: FECHA EJECUCIÓN DE ACTIVIDADES | Q12: EVIDENCIA | R12: ¿CUÁNDO FINALIZARÁ? | S12: RESULTADO | T12: NIVEL OBTENIDO | U12: ACCESO
A13: Formación y Aprendizaje | C13: Frente Estratégico I: Institución Translocal del siglo 21: Desde la acreditación de programas a la acreditación institucional | D13: Se legitima como una organización social del conocimiento y el aprendizaje que se compromete con el pensamiento basado en riesgos y el mejoramiento continuo mediante buenas prácticas administrativas y académicas en búsqueda de la acreditación de programas y la acreditación institucional | E13: 2: Lograr la acreditación de programas y la acreditación institucional de acuerdo a la planificación de las metas institucionales resultantes de los ejercicios de autoevaluación y acreditación. A su vez se relacionan todos los requisitos | F13: Asegurar la calidad de la formación, el aprendizaje y la gestión del conocimiento que le permita al estudiante ser creador de oportunidades, autónomo, crítico y propositivo para dar respuesta efectiva y de impacto al desarrollo social y al docente ser gestor de innovación y emprendimiento. | G13: Asegurar la vinculación de 600 profesores con dedicación tiempo completo a nivel institucional, fortaleciendo la planta profesoral. | H13: Número de profesores con dedicación de tiempo completo | I13: N° de profesores tiempo completo | J13: Acreditación | K13: SEMESTRAL | L13: 600 profesores | M13: Creación de Grupos, Cupos y Horarios. (Institucionales y Disciplinares) | N13: Jefe de Oficina de Desarrollo Académico - Programas Académicos (Pregrado) | O13: Recursos financieros (Contratación) Talento Humano (Profesores) Información documentada (Perfiles gestores del conocimiento y el aprendizaje, actividades asignadas) | P13: SEMESTRAL (IPA Y IIPA 2024) | Q13: Plataforma Academusoft con la evidencia de la creación de grupos. | R13: 2024 | S13: 620 | T13: EXCELENTE | U13: MFA-13
M14: Registro de preasignación Docente | N14: Decanos, Instituto de Posgrados y Coordinadores de Programas Académicos Pregrado | P14: SEMESTRAL (IPA Y IIPA 2024) | Q14: Aplicativo Contratación General | U14: MFA-13
M15: Verificación y aprobación de la preasignación Docente | N15: Oficina de Desarrollo Académico Pregrado | P15: SEMESTRAL (IPA Y IIPA 2024) | Q15: Aplicativo Contratación General | U15: MFA-13
M16: Envió de preasignación formato Excel y PDF debidamente firmado por las Decanaturas de los programas académicos | N16: Decanos y Coordinadores de programas académicos pregrado | P16: SEMESTRAL (IPA Y IIPA 2024) | Q16: Excel firmado | U16: MFA-13
M17: Solicitud de expedición de CDP para contratación de los profesores de los programas académicos de pregrado | N17: Oficina de Desarrollo Académico - Vicerrectoría Académica | P17: SEMESTRAL (IPA Y IIPA 2024) | Q17: Correo electrónico institucional con documentación | U17: MFA-13
M18: Envió de CDP a programas académicos pregrado | N18: Oficina de Desarrollo Académico | P18: SEMESTRAL (IPA Y IIPA 2024) | Q18: CDP | U18: MFA-13
M19: Recepción y Revisión de Hojas de Vida, Aprobación Consejo Facultad. | N19: Coordinadores de programas académicos | P19: SEMESTRAL (IPA Y IIPA 2024) | Q19: Aplicativo Banco de talento Académico. | U19: MFA-13
M20: Categorización Docente | N20: Talento Humano | P20: SEMESTRAL (IPA Y IIPA 2024) | Q20: Correo Institucional con la respectiva solicitud. | U20: MFA-13
M21: Cargue de documentación, Certificado Medico para el personal docente, a saber, la solicitad a la/o requerida por el Formato ATHr131 - CheckList , SIGEP II y cursos virtuales. | N21: Talento Humano y SST, Coordinadores de programas académicos, la Dirección de Talento Humano y Profesor. | P21: SEMESTRAL (IPA Y IIPA 2024) | Q21: Firma de Lista de Chequeo, Firma y/o VoBo a Lista de Chequeo. | U21: MFA-13
M22: Creación y diseño del plan de trabajo Docente, definición de tipo de contratación (HC y TCO) | N22: Oficina de Desarrollo Académico Coordinadores de programas académicos | P22: SEMESTRAL (IPA Y IIPA 2024) | Q22: Plataforma Institucional | U22: MFA-13
M23: Aceptación plan de trabajo docente en plataforma y firma al contrato (HC y TCO) | N23: Coordinadores de Programas Académicos y Profesores | P23: SEMESTRAL (IPA Y IIPA 2024) | Q23: Plataforma Institucional Contrato - Firma Digital. | U23: MFA-13
G24: Consolidar el 100% de dedicación de profesores, en relación de 1 a 30 estudiantes en programas de posgrado a nivel institucional. | H24: Relación profesor - estudiante (Maestrías) | I24: N° de programas académicos con relación 1/30 por periodo académico *100 / N° total de programas académicos | L24: 1 | M24: Creación en plataforma de grupos, cupos y horarios. | N24: Coordinadores de programa académico | O24: Talento Humano Información documentada y recursos electrónicos (Bases de datos de Admisiones y Registro, Talento Humano y Desarrollo Académico) | P24: SEMESTRAL (IPA Y IIPA 2024) | Q24: Plataforma institucional. | S24: 0.9 | T24: BUENO | U24: MFA-14
M25: Registro de Preasignación Docente | N25: Directora del Instituto y Coordinadores de Programas Académicos. | P25: SEMESTRAL (IPA Y IIPA 2024) | Q25: Plataforma Institucional | U25: MFA-14
M26: Verificación y aprobación de la contratación docente | N26: Directora Instituto de Posgrados | P26: SEMESTRAL (IPA Y IIPA 2024) | Q26: Aplicativo de contratación general | U26: MFA-14
M27: Envió de preasignación debidamente aprobado y firmado, en los formatos PDF y Excel | N27: Directora del Instituto y Coordinadores de Programas Académicos. | P27: SEMESTRAL (IPA Y IIPA 2024) | Q27: Correo Institucional con la respectiva solicitud | U27: MFA-14
M28: Solicitud de expedición de CDP para contratación de los docentes. | N28: Instituto de Posgrados Vicerrectoría Financiera. | P28: SEMESTRAL (IPA Y IIPA 2024) | Q28: Solicitud Integradoc | U28: MFA-14
M29: Envió de CDP a los programas | N29: Instituto de Posgrados Oficina de Presupuesto | P29: SEMESTRAL (IPA Y IIPA 2024) | Q29: CDP | U29: MFA-14
M30: Recepción y Revisión de Hojas de Vida, Aprobación Consejo de Posgrados. | N30: Coordinadores de programas académicos | P30: SEMESTRAL (IPA Y IIPA 2024) | Q30: Aplicativo Banco de talento Académico. | U30: MFA-14
M31: Solicitud de Categorización Docente | N31: Talento Humano | P31: SEMESTRAL (IPA Y IIPA 2024) | Q31: Correo Institucional con la respectiva solicitud. | U31: MFA-14
M32: Cargue de documentación, Certificado Medico para el personal docente, a saber, la solicitad a la/o requerida por el Formato ATHr131 - CheckList , SIGEP II y cursos virtuales. | N32: Talento Humano y SST, Coordinadores de programa académico, Talento Humano. | P32: SEMESTRAL (IPA Y IIPA 2024) | Q32: Firma de Lista de Chequeo, Firma y/o VoBo a Lista de Chequeo. | U32: MFA-14
M33: Creación y diseño del plan de trabajo Docente, definición de tipo de contratación (HC y TCO) | N33: Coordinadores de programa académico | P33: SEMESTRAL (IPA Y IIPA 2024) | Q33: Plataforma Institucional | U33: MFA-14
M34: Aceptación plan de trabajo docente en plataforma y firma al contrato (HC y TCO) | N34: Profesores, Directora del Instituto, Coordinadores de Programa Académico. | P34: SEMESTRAL (IPA Y IIPA 2024) | Q34: Plataforma Institucional Contrato por Correo Institucional - Firma Digital. | U34: MFA-14
G35: Consolidar el 100% de dedicación de profesores, en relación de 1 a 35 estudiantes en programas de pregrado a nivel institucional. | H35: Relación profesor - estudiante | I35: N° de programas académicos con relación 1/35 por período académico *100 / N° total de programas académicos | L35: 0.95 | M35: Creación de Grupos, Cupos y Horarios de acuerdo a la demanda estudiantil. (Institucionales y Disciplinares) | N35: Jefe de Oficina de Desarrollo Académico - Programas Académicos (Pregrado) | O35: Talento Humano Información documentada y recursos electrónicos (Bases de datos de Admisiones y Registro, Talento Humano y Desarrollo Académico) | P35: SEMESTRAL (IPA Y IIPA 2024) | Q35: Correo electrónico de la solicitud de grupos | S35: 0.9 | T35: BUENO | U35: MFA-15
M36: Registro de preasignación Docente | N36: Decanos, Instituto de Posgrados y Coordinadores de Programas Académicos (Pregrado y Posgrado) | P36: SEMESTRAL (IPA Y IIPA 2024) | Q36: Aplicativo Contratación General | U36: MFA-15
M37: Verificación y aprobación de la preasignación Docente | N37: Oficina de Desarrollo Académico (Pregrado y Posgrado) | P37: SEMESTRAL (IPA Y IIPA 2024) | Q37: Aplicativo Contratación General | U37: MFA-15
M38: Solicitud de expedición de CDP para contratación de los profesores de los programas académicos de pregrado | N38: Decanos y Coordinadores de programas académicos pregrado | P38: SEMESTRAL (IPA Y IIPA 2024) | Q38: Correo electrónico institucional con documentación | U38: MFA-15
M39: Solicitud de expedición de CDP para contratación de los profesores de los programas académicos de pregrado | N39: Oficina de Desarrollo Académico - Vicerrectoría Académica | P39: SEMESTRAL (IPA Y IIPA 2024) | Q39: Correo electrónico institucional con documentación | U39: MFA-15
M40: Envió de CDP a programas académicos pregrado | N40: Oficina de Desarrollo Académico | P40: SEMESTRAL (IPA Y IIPA 2024) | Q40: CDP | U40: MFA-15
M41: Recepción y Revisión de Hojas de Vida, Aprobación Consejo Académico. | N41: Coordinadores de programas académicos | P41: SEMESTRAL (IPA Y IIPA 2024) | Q41: Aplicativo Banco de talento Académico. | U41: MFA-15
M42: Solicitud de Categorización Docente | N42: Talento Humano | P42: SEMESTRAL (IPA Y IIPA 2024) | Q42: Correo Institucional con la respectiva solicitud. | U42: MFA-15
M43: Cargue de documentación, Certificado Medico para el personal docente, a saber, la solicitad a la/o requerida por el Formato ATHr131 - CheckList , SIGEP II y cursos virtuales | N43: Talento Humano y SST, Coordinadores de programas académicos y la Dirección de Talento Humano | P43: SEMESTRAL (IPA Y IIPA 2024) | Q43: Firma de Lista de Chequeo, Firma y/o VoBo a Lista de Chequeo. | U43: MFA-15
M44: Creación y diseño del plan de trabajo Docente, definición de tipo de contratación (HC y TCO) | N44: Oficina de Desarrollo Académico Coordinadores de programas académicos | P44: SEMESTRAL (IPA Y IIPA 2024) | Q44: Plataforma Institucional | U44: MFA-15
M45: Aceptación plan de trabajo docente en plataforma y firma al contrato (HC y TCO) | N45: Oficina de Desarrollo Académico, Coordinadores de Programas Académicos y Profesores | P45: SEMESTRAL (IPA Y IIPA 2024) | Q45: Plataforma Institucional Contrato por Correo Institucional - Firma Digital. | U45: MFA-15 | AD45: *Verificación de los campos de aprendizaje institucionales CAI y CAD -*Publicación de Horarios -*Registro Académico de Estudiantes Antiguos y Nuevos *Registro Académico de casos especiales o novedades *Establecimiento de Alertas tempranas Semanas 4, 8, 12 y 16 *Seguimiento a las estrategias planteadas para la atención de alertas tempranas *Registro del resultado final de la evaluación de aprendizajes *Extracción del resultado final de la evaluación del aprendizaje de plataforma Moodle a plataforma Académica * Reporte de novedades y correcciones de notas
G46: Asegurar la promoción del 90% de estudiantes matriculados para cada periodo académico en los programas de pregrado y posgrado a nivel institucional. | H46: Resultados de aprendizaje | I46: N° de estudiantes promovidos * 100 / N° total de estudiantes matriculados | L46: 0.9 | M46: Verificación de los campos de aprendizaje institucionales CAI y CAD | N46: Oficina de Educación Virtual y a Distancia Direcciones y Coordinaciones de programas pregrado y posgrado | O46: Talento Humano Información documentada (Bases de datos de Admisiones y Registro) | P46: SEMESTRAL (IPA Y IIPA 2024) | Q46: CMA | S46: 0.81 | T46: BUENO | U46: MFA-16
M47: Publicación de Horarios | N47: Dirección de Sistemas y Tecnología | P47: SEMESTRAL (IPA Y IIPA 2024) | Q47: Publicación de horarios en página institucional | U47: MFA-16
M48: Registro Académico de Estudiantes Antiguos y Nuevos | N48: Dirección de Sistemas y Tecnología Oficina de Admisiones Coordinaciones y Direcciones de programas | P48: SEMESTRAL (IPA Y IIPA 2024) | Q48: Reporte de matrícula | U48: MFA-16
M49: Registro Académico de casos especiales o novedades | N49: Coordinadores y Directores de programas Académicos | P49: SEMESTRAL (IPA Y IIPA 2024) | Q49: Comunicaciones Correos Electrónicos Actas de comités curriculares | U49: MFA-16
M50: Establecimiento de Alertas tempranas Semanas 4, 8, 12 y 16 | N50: CMA Oficina de Educación Virtual y a Distancia Gestión de Éxito Académico | P50: SEMESTRAL (IPA Y IIPA 2024) | Q50: PowerBI Comunicaciones por correos electrónicos | U50: MFA-16
M51: Seguimiento a las estrategias planteadas para la atención de alertas tempranas | N51: Coordinadores y Directores de programas Académicos Comisión de Gestión y Evaluación Curricular | P51: SEMESTRAL (IPA Y IIPA 2024) | Q51: Actas de comisión de gestión y Evaluación curricular Reporte de profesor Asesor PowerBI monitores | U51: MFA-16
M52: Registro del resultado final de la evaluación de aprendizajes | N52: Decanaturas Coordinaciones de programas pregrado y posgrado Oficina de Admisiones y Registro | P52: SEMESTRAL (IPA Y IIPA 2024) | Q52: Reportes de notas | U52: MFA-16
M53: Extracción del resultado final de la evaluación del aprendizaje de plataforma Moodle a plataforma Académica | N53: Oficina de Educación Virtual y a Distancia dirección de Sistemas Oficina de Admisiones y Registro Decanaturas | P53: SEMESTRAL (IPA Y IIPA 2024) | Q53: Reporte de extracción del resultado final | U53: MFA-16
M54: Reporte de novedades y correcciones de notas | N54: Director o Coordinador de programa pregrado y posgrado Vicerrectoría Académica Oficina de Admisiones y registro | P54: SEMESTRAL (IPA Y IIPA 2024) | Q54: Diligenciamiento del MAr043 | U54: MFA-16
C55: Frente Estratégico VI: Gobierno Universitario Digital | D55: Se legitima como una organización social del conocimiento y el aprendizaje que se compromete con el pensamiento basado en riesgos y el mejoramiento continuo mediante buenas prácticas administrativas y académicas en búsqueda de la acreditación de programas y la acreditación institucional, enfocándose en el bienestar de la comunidad universitaria como factor constitutivo de la vida y la libertad y la consolidación de una organización universitaria inteligente con alma y corazón. | E55: 5. Mejorar continuamente el desempeño de los procesos a través de la implementación de buenas prácticas institucionales y de la aplicación de los mecanismos dispuestos por la Universidad de Cundinamarca, para la constitución de una organización universitaria inteligente con alma y corazón. | G55: Asegurar la vinculación de 600 profesores con dedicación tiempo completo a nivel institucional, fortaleciendo la planta profesoral. Consolidar el 100% de dedicación de profesores, en relación de 1 a 30 estudiantes en programas de posgrado a nivel institucional. Consolidar el 100% de dedicación de profesores, en relación de 1 a 35 estudiantes en programas de pregrado a nivel institucional. Asegurar la promoción del 90% de estudiantes matriculados para cada periodo académico en los programas de pregrado y posgrado a nivel institucional. | H55: Oportunidad en la atención de solicitudes en el CMA digital | I55: Total de solicitudes tramitadas oportunamente *100 /Total de solicitudes | J55: Eficiencia | L55: 0.9 | M55: Recepción de solicitudes de usuarios a través de la estrategia MEDIT a un clic: Mesa de ayuda y correo institucional de soporteaulavirtual@ucundinamarca.edu.co | N55: Equipo de plataforma y aprendizaje | O55: Recursos tecnológicos Talento Humano Información documentada (bases de datos) | P55: Diariamente | Q55: Evidencia 1 osTicket :: panel de control del personal | S55: 0.83 | T55: BUENO | U55: MFA-20
M56: Revisión de las diferentes solicitudes | N56: Equipo de plataforma y aprendizaje | P56: Diariamente | Q56: Evidencia 2 osTicket :: panel de control del personal | U56: MFA-20
M57: Distribución de las solicitudes entre los gestores Tecno Educativos del CMAD | N57: Equipo de plataforma y aprendizaje | P57: Diariamente | Q57: Evidencia 3 osTicket :: panel de control del personal | U57: MFA-20
M58: Atención de las solicitudes en un término no mayor de tres días | N58: Equipo de plataforma y aprendizaje | P58: Diariamente | Q58: Evidencia 4 Reporte de tickets | U58: MFA-20
M59: Seguimiento a las solicitudes por parte de la Jefatura de Educación Virtual y a Distancia a través de la herramienta Teams | N59: Jefe Oficina de Educación Virtual y a Distancia | P59: Diariamente | Q59: Equipo Teams Plataforma de Aprendizaje 2023 | U59: MFA-20
B60: Institucionales | C60: Frente Estratégico VI: Gobierno Universitario Digital | D60: La Universidad guía su comportamiento y mejora continua a través de cumplimiento de requisitos definidos en buenas prácticas administrativas que soportan su quehacer diario redundando en la calidad de los procesos y logrando la acreditación de los programas y la acreditación institucional. | E60: 7. Garantizar la mejora continua a través de la gestión de los riesgos y las oportunidades en la Universidad de Cundinamarca. | G60: Asegurar la vinculación de 600 profesores con dedicación tiempo completo a nivel institucional, fortaleciendo la planta profesoral. Consolidar el 100% de dedicación de profesores, en relación de 1 a 30 estudiantes en programas de posgrado a nivel institucional. Consolidar el 100% de dedicación de profesores, en relación de 1 a 35 estudiantes en programas de pregrado a nivel institucional. Asegurar la promoción del 90% de estudiantes matriculados para cada periodo académico en los programas de pregrado y posgrado a nivel institucional. | H60: Tasa de graduación efectiva | I60: Número de graduados oportunos por programa académico (Plan de estudios + 1 semestre) * 100 / Total de estudiantes graduados en el semestre por programa académico | J60: Acreditación | K60: SEMESTRAL | L60: 0.8 | M60: Brindar acompañamiento en la Formación y Aprendizaje de los estudiantes en la Universidad de Cundinamarca. | N60: Formación y Aprendizaje | O60: Talento Humano Tecnológicos (Sistemas de información) Herramientas ofimáticas | P60: SEMESTRAL (IPA Y IIPA 2024) | Q60: Acuerdos formación y aprendizaje/ SYLLABUS, registros de asistencia. | S60: 0.81 | T60: EXCELENTE | U60: 'INS-6
M61: Evaluar y realizar seguimiento al índice de permanencia y promoción de los estudiantes de la Universidad de Cundinamarca. | N61: Admisiones y Registro Bienestar Universitario Formación y Aprendizaje | P61: SEMESTRAL (IPA Y IIPA 2024) | Q61: Reporte SNIES Informes de acciones en la gestión de éxito académico y tasa de permanencia Informe de gestión campos de aprendizaje | U61: INS-6
M62: Generar la medición al número de graduados oportunos de acuerdo a los lineamientos establecidos por el MEN, de los graduandos de la Universidad de Cundinamarca. | N62: Formación y Aprendizaje | P62: SEMESTRAL (IPA Y IIPA 2024) | Q62: Medición del indicador INS-6 | U62: INS-6
M63: Establecer acciones correctivas desde las diferentes facultades para lograr la meta de graduados oportunos de acuerdo a los lineamientos institucionales y nacionales establecidos. | N63: Decanos y Coordinadores de programas académicos pregrado y posgrado Bienestar Universitario Formación y Aprendizaje | P63: SEMESTRAL (IPA Y IIPA 2024) | Q63: Correo electrónico de la solicitud y estrategias | U63: INS-6
B130: Diagonal 18 No. 20-29 Fusagasugá – Cundinamarca Teléfono (601) 8281483 Línea Gratuita 018000180414 www.ucundinamarca.edu.co E-mail: info@ucundinamarca.edu.co NIT: 890.680.062-2
B131: Documento controlado por el Sistema de Gestión de la Calidad Asegúrese que corresponde a la última versión consultando el Portal Institucional
C140: LINEAMIENTOS DE LA POLÍTICA DE CALIDAD | D140: OBJETIVOS DE CALIDAD | E140: ALINEACIÓN DE LOS INDICADORES CON LOS DOCUMENTOS ESTRATÉGICOS Y LOS OBJETIVOS DE CALIDAD
C141: LINEAMIENTOS DE LA POLÍTICA DE SEGURIDAD Y SALUD EN EL TRABAJO | D141: OBJETIVOS DE SEGURIDAD Y SALUD EN EL TRABAJO | E141: ALINEACIÓN DE LOS INDICADORES CON LOS DOCUMENTOS ESTRATÉGICOS Y LOS OBJETIVOS DE SEGURIDAD Y SALUD EN EL TRABAJO
C142: LINEAMIENTOS DE LA POLÍTICA DE AMBIENTAL | D142: OBJETIVOS DE AMBIENTAL | E142: ALINEACIÓN DE LOS INDICADORES CON LOS DOCUMENTOS ESTRATÉGICOS Y LOS OBJETIVOS DE AMBIENTAL
C143: LINEAMIENTOS DE LA POLÍTICA DE SEGURIDAD DE LA INFORMACIÓN | D143: OBJETIVOS DE SEGURIDAD DE LA INFORMACIÓN | E143: ALINEACIÓN DE LOS INDICADORES CON LOS DOCUMENTOS ESTRATÉGICOS Y LOS OBJETIVOS DE SEGURIDAD DE LA INFORMACIÓN
C144: LINEAMIENTOS DE LA POLÍTICA DE SEGURIDAD DE ANTISOBORNO | D144: OBJETIVOS DE SEGURIDAD DE ANTISOBORNO | E144: ALINEACIÓN DE LOS INDICADORES CON LOS DOCUMENTOS ESTRATÉGICOS Y LOS OBJETIVOS DE SEGURIDAD DE ANTISOBORNO
C145: LINEAMIENTOS DE LA POLÍTICA DE LA CONCILIACIÓN DE LA VIDA PERSONAL, FAMILIAR Y LABORAL | D145: OBJETIVOS DE LA CONCILIACIÓN DE LA VIDA PERSONAL, FAMILIAR Y LABORAL | E145: ALINEACIÓN DE LOS INDICADORES CON LOS DOCUMENTOS ESTRATÉGICOS Y LOS OBJETIVOS DE LA CONCILIACIÓN DE LA VIDA PERSONAL, FAMILIAR Y LABORAL

Sheet MFA-13
B2: REGRESAR
E5: MACROPROCESO ESTRATÉGICO | M5: CÓDIGO: ESGr027
E6: PROCESO GESTIÓN SISTEMAS INTEGRADOS - CALIDAD | M6: VERSIÓN: 8
E7: MATRIZ DE MEDICIÓN Y SEGUIMIENTO A LOS PROCESOS DE GESTIÓN | M7: VIGENCIA: 2023-07-28
M8: PÁGINA: 2 de 7
C10: FICHA DE INDICADOR
C12: MACROPROCESO | E12: Misional | I12: NOMBRE DEL INDICADOR | K12: Número de profesores con dedicación de tiempo completo
C13: PROCESO GESTIÓN | E13: Formación y Aprendizaje
C14: RESPONSABLE DE MEDICIÓN | E14: Vicerrectoría Académica
C16: 1. COMPORTAMIENTO DE INDICADOR
C17: CLASIFICACIÓN DE LA MEDICIÓN | E17: 2 | H17: TIPO DE INDICADOR | J17: Acreditación | L17: META | N17: 600
C18: FORMULA | E18: N° de profesores tiempo completo | L18: UNIDAD DE MEDIDA | N18: Profesores
C20: TENDENCIA | E20: Positiva | H20: NIVEL DE SEGREGACIÓN * | J20: Por Programa Académico | L20: ESCALA
L21: Deficiente | M21: Aceptable | N21: Bueno | O21: Excelente
L22: 0 - 300 | M22: 301- 490 | N22: 491 - 600 | O22: ≥ 601
C23: ORIGEN DE DATOS | E23: Base de datos Talento Humano | H23: FRECUENCIA DE LA MEDICIÓN | J23: SEMESTRAL | L23: FRECUENCIA DE RESULTADO | N23: SEMESTRAL
C26: RESULTADOS
J27: ANÁLISIS DE DATOS
J28: 2024-1: Para el primer periodo académico de 2024, se estableció como meta contar con 600 gestores del conocimiento y el aprendizaje (profesores) tiempo completo. Es importante resaltar que ha alcanzado y superado esta meta con un total de 624 profesores. Este logro no solo evidencia el cumplimiento de los objetivos institucionales, sino también el fortalecimiento significativo de la planta profesoral en la modalidad de tiempo completo como parte de los indicadores de cumplimiento del CNA y el Ministerio de Educación Nacional. 2024-2: Para el segundo periodo académico de 2024, se estableció como meta contar con 600 gestores del conocimiento y el aprendizaje (profesores) tiempo completo. Es importante resaltar que ha alcanzado y superado esta meta con un total de 620 gestores del conocimiento y el aprendizaje. Este logro no solo evidencia el cumplimiento de los objetivos institucionales, sino también el fortalecimiento significativo de la planta profesoral en la modalidad de tiempo completo como parte de los indicadores de cumplimiento del CNA y el Ministerio de Educación Nacional.
J34: ACCIÓN FORMULADA Reformular la meta para el próximo año dependiendo de los recursos asignados.
J35: No aplica
J41: RESPONSABLE
J42: =E14 -> Vicerrectoría Académica
C45: PERIODO DE EVALUACIÓN
C46: MES | D46: =IF(J23="MENSUAL","ENERO",IF(J23="TRIMESTRAL","MARZO",IF(J23="SEMESTRAL","JUNIO",IF(J23="ANUAL",YEAR(TODAY()),"")))) -> JUNIO | E46: =IF(J23="MENSUAL","FEBRERO",IF(J23="TRIMESTRAL","JUNIO",IF(J23="SEMESTRAL","DICIEMBRE",""))) -> DICIEMBRE | F46: =IF(J23="MENSUAL","MARZO",IF(J23="TRIMESTRAL","SEPTIEMBRE","")) ->  | G46: =IF(J23="MENSUAL","ABRIL",IF(J23="TRIMESTRAL","DICIEMBRE","")) ->  | H46: =IF(J23="MENSUAL","MAYO","") ->  | I46: =IF(J23="MENSUAL","JUNIO","") ->  | J46: =IF(J23="MENSUAL","JULIO","") ->  | K46: =IF(J23="MENSUAL","AGOSTO","") ->  | L46: =IF(J23="MENSUAL","SEPTIEMBRE","") ->  | M46: =IF(J23="MENSUAL","OCTUBRE","") ->  | N46: =IF(J23="MENSUAL","NOVIEMBRE","") ->  | O46: =IF(J23="MENSUAL","DICIEMBRE","") -> 
C47: =G18 -> 0 | D47: 624 | E47: 620
C48: =G19 -> 0
C49: VALOR | D49: =IFERROR(IF($E$17=1,D47/D48,IF($E$17=2,D47,"")),"") -> 624 | E49: =IFERROR(IF($E$17=1,E47/E48,IF($E$17=2,E47,"")),"") -> 620 | H49: 0 | I49: 0 | J49: 0 | K49: 0 | L49: 0 | M49: 0 | N49: 0 | O49: 0
C50: META PONDERADA | D50: =IF(AND(N23="ANUAL",J23="MENSUAL"),N17/12,IF(AND(N23="ANUAL",J23="TRIMESTRAL"),N17/4,IF(AND(N23="ANUAL",J23="SEMESTRAL"),N17/2,IF(AND(N23="ANUAL",J23="ANUAL"),N17,IF(AND(N23="SEMESTRAL",J23="MENSUAL"),N17/6,IF(AND(N23="SEMESTRAL",J23="TRIMESTRAL"),N17/2,IF(AND(N23="SEMESTRAL",J23="SEMESTRAL"),N17,IF(AND(N23="SEMESTRAL",J23="ANUAL"),"REVISAR FRECUENCIAS",IF(AND(N23="TRIMESTRAL",J23="MENSUAL"),N17/3,IF(AND(N23="TRIMESTRAL",J23="TRIMESTRAL"),N17,IF(AND(N23="TRIMESTRAL",J23="SEMESTRAL"),"REVISAR FRECUENCIAS",IF(AND(N23="TRIMESTRAL",J23="ANUAL"),"REVISAR FRECUENCIAS",IF(AND(N23="MENSUAL",J23="MENSUAL"),N17,IF(AND(N23="MENSUAL",J23="TRIMESTRAL"),"REVISAR FRECUENCIAS",IF(AND(N23="MENSUAL",J23="SEMESTRAL"),"REVISAR FRECUENCIAS",IF(AND(N23="MENSUAL",J23="ANUAL"),"REVISAR FRECUENCIAS","")))))))))))))))) -> 600 | E50: =IF(AND(N23="ANUAL",J23="MENSUAL"),N17/12+D50,IF(AND(N23="ANUAL",J23="TRIMESTRAL"),N17/4+D50,IF(AND(N23="ANUAL",J23="SEMESTRAL"),N17/2+D50,IF(AND(N23="SEMESTRAL",J23="MENSUAL"),N17/6+D50,IF(AND(N23="SEMESTRAL",J23="TRIMESTRAL"),N17/2+D50,IF(AND(N23="SEMESTRAL",J23="SEMESTRAL"),N17,IF(AND(N23="TRIMESTRAL",J23="MENSUAL"),N17/3+D50,IF(AND(N23="TRIMESTRAL",J23="TRIMESTRAL"),N17,IF(AND(N23="MENSUAL",J23="MENSUAL"),N17,""))))))))) -> 600 | F50: =IF(AND(N23="ANUAL",J23="MENSUAL"),N17/12+E50,IF(AND(N23="ANUAL",J23="TRIMESTRAL"),N17/4+E50,IF(AND(N23="SEMESTRAL",J23="MENSUAL"),N17/6+E50,IF(AND(N23="SEMESTRAL",J23="TRIMESTRAL"),N17/2,IF(AND(N23="TRIMESTRAL",J23="MENSUAL"),N17/3+E50,IF(AND(N23="TRIMESTRAL",J23="TRIMESTRAL"),N17,IF(AND(N23="MENSUAL",J23="MENSUAL"),N17,""))))))) ->  | G50: =IF(AND(N23="ANUAL",J23="MENSUAL"),N17/12+F50,IF(AND(N23="ANUAL",J23="TRIMESTRAL"),N17/4+F50,IF(AND(N23="SEMESTRAL",J23="MENSUAL"),N17/6+F50,IF(AND(N23="SEMESTRAL",J23="TRIMESTRAL"),N17/2+F50,IF(AND(N23="TRIMESTRAL",J23="MENSUAL"),N17/3,IF(AND(N23="TRIMESTRAL",J23="TRIMESTRAL"),N17,IF(AND(N23="MENSUAL",J23="MENSUAL"),N17,""))))))) ->  | H50: =IF(AND($N$23="ANUAL",$J$23="MENSUAL"),$N$17/12+G50,IF(AND(N23="SEMESTRAL",J23="MENSUAL"),N17/6+G50,IF(AND(N23="TRIMESTRAL",J23="MENSUAL"),N17/3+G50,IF(AND(N23="MENSUAL",J23="MENSUAL"),N17,"")))) ->  | I50: =IF(AND($N$23="ANUAL",$J$23="MENSUAL"),$N$17/12+H50,IF(AND(N23="SEMESTRAL",J23="MENSUAL"),N17/6+H50,IF(AND(N23="TRIMESTRAL",J23="MENSUAL"),N17/3+H50,IF(AND(N23="MENSUAL",J23="MENSUAL"),N17,"")))) ->  | J50: =IF(AND($N$23="ANUAL",$J$23="MENSUAL"),$N$17/12+I50,IF(AND(N23="SEMESTRAL",J23="MENSUAL"),N17/6,IF(AND(N23="TRIMESTRAL",J23="MENSUAL"),N17/3,IF(AND(N23="MENSUAL",J23="MENSUAL"),N17,"")))) ->  | K50: =IF(AND($N$23="ANUAL",$J$23="MENSUAL"),$N$17/12+J50,IF(AND(N23="SEMESTRAL",J23="MENSUAL"),N17/6+J50,IF(AND(N23="TRIMESTRAL",J23="MENSUAL"),N17/3+J50,IF(AND(N23="MENSUAL",J23="MENSUAL"),N17,"")))) ->  | L50: =IF(AND($N$23="ANUAL",$J$23="MENSUAL"),$N$17/12+K50,IF(AND(N23="SEMESTRAL",J23="MENSUAL"),N17/6+K50,IF(AND(N23="TRIMESTRAL",J23="MENSUAL"),N17/3+K50,IF(AND(N23="MENSUAL",J23="MENSUAL"),N17,"")))) ->  | M50: =IF(AND($N$23="ANUAL",$J$23="MENSUAL"),$N$17/12+L50,IF(AND(N23="SEMESTRAL",J23="MENSUAL"),N17/6+L50,IF(AND(N23="TRIMESTRAL",J23="MENSUAL"),N17/3,IF(AND(N23="MENSUAL",J23="MENSUAL"),N17,"")))) ->  | N50: =IF(AND($N$23="ANUAL",$J$23="MENSUAL"),$N$17/12+M50,IF(AND(N23="SEMESTRAL",J23="MENSUAL"),N17/6+M50,IF(AND(N23="TRIMESTRAL",J23="MENSUAL"),N17/3+M50,IF(AND(N23="MENSUAL",J23="MENSUAL"),N17,"")))) ->  | O50: =IF(AND($N$23="ANUAL",$J$23="MENSUAL"),$N$17/12+N50,IF(AND(N23="SEMESTRAL",J23="MENSUAL"),N17/6+N50,IF(AND(N23="TRIMESTRAL",J23="MENSUAL"),N17/3+N50,IF(AND(N23="MENSUAL",J23="MENSUAL"),N17,"")))) -> 
C52: NIVEL DE SEGREGACIÓN *
C53: UNIDAD SEGREGADA (Ej. Facultad, Programa Académico, Área) | G53: RESULTADO | K53: ANÁLISIS DE DATOS SEGREGADO
C54: Administración de Empresas | G54: 85 | K54: La vinculación de profesores tiempo completo del programa Administración de Empresas corresponde al 13,71% de la contratación
C55: Contaduría Publica | G55: 53 | K55: La vinculación de profesores tiempo completo del programa Contaduría Publica corresponde al 8,55% de la contratación
C56: Ing. Agronómica | G56: 48 | K56: La vinculación de profesores tiempo completo del programa Ing. Agronómica corresponde al 7,74% de la contratación
C57: Ing. Ambiental | G57: 51 | K57: La vinculación de profesores tiempo completo del programa Ing. Ambiental corresponde al 8,23% de la contratación
C58: Ing. Sistemas y Computación | G58: 78 | K58: La vinculación de profesores tiempo completo del programa Ing. Sistemas y Computación corresponde al 12,58% de la contratación
C59: Ing. Electrónica | G59: 16 | K59: La vinculación de profesores tiempo completo del programa Ing. Electrónica corresponde al 2,58% de la contratación
C60: Ing. Industrial | G60: 26 | K60: La vinculación de profesores tiempo completo del programa Ing. Industrial corresponde al 4,19% de la contratación
C61: Zootecnia | G61: 39 | K61: La vinculación de profesores tiempo completo del programa Zootecnia corresponde al 6,29% de la contratación
C62: Enfermería | G62: 33 | K62: La vinculación de profesores tiempo completo del programa Enfermería corresponde al 5,32% de la contratación
C63: Lic. en Educación Básica con Énfasis en Ciencias Sociales | G63: 19 | K63: La vinculación de profesores tiempo completo del programa Lic. en Educación Básica con Énfasis en Ciencias Sociales corresponde al 3,06% de la contratación
C64: Licenciatura en educación básica con énfasis en educación física, recreación y deporte | G64: 2 | K64: La vinculación de profesores tiempo completo del programa Licenciatura en educación básica con énfasis en educación física, recreación y deporte corresponde al 0,32% de la contratación
C65: Licenciatura En Educación Física Recreación Y Deportes | G65: 4 | K65: La vinculación de profesores tiempo completo del programa Licenciatura en educación física, recreación y deporte corresponde al 0,65% de la contratación
C66: Licenciatura en educación básica con énfasis en humanidades: lengua castellana e ingles | G66: 0 | K66: no aplica
C67: Licenciatura en matemáticas | G67: 0 | K67: no aplica
C68: Música | G68: 31 | K68: La vinculación de profesores tiempo completo del programa Música corresponde al 5% de la contratación
C69: Psicología | G69: 17 | K69: La vinculación de profesores tiempo completo del programa Psicología corresponde al 2,74% de la contratación
C70: Tecnología en cartografía | G70: 0 | K70: no aplica
C71: Tecnología en desarrollo de software | G71: 0 | K71: no aplica
C72: Tecnología en gestión turística y hotelera | G72: 0 | K72: no aplica
C73: Transversales (Humanidades, Ingles y Ciencias Básicas) | G73: 28 | K73: La vinculación de profesores tiempo completo del programa Transversales (Humanidades, Ingles y Ciencias Básicas) corresponde al 4,51% de la contratación
C74: Ingeniería de Software | G74: 13 | K74: La vinculación de profesores tiempo completo del programa Ingeniería de Software corresponde al 2,1% de la contratación
C75: Profesional en ciencias del deporte y la educación física | G75: 33 | K75: La vinculación de profesores tiempo completo del programa Profesional en ciencias del deporte y la educación física corresponde al 5,32% de la contratación
C76: Coordinadores de programa | G76: 31 | K76: La vinculación de profesores tiempo completo del programa Coordinadores de programa corresponde al 5% de la contratación
C77: Doctorado en Ciencias de la Educación | G77: 2 | K77: La vinculación de profesores tiempo completo del programa Doctorado en Ciencias de la Educación corresponde al 0,32% de la contratación
C78: Maestría en Educación | G78: 2 | K78: La vinculación de profesores tiempo completo del programa Maestría en Educación corresponde al 0,32% de la contratación
C79: Maestría en ciencias Ambientales | G79: 1 | K79: La vinculación de profesores tiempo completo del programa Maestría en ciencias Ambientales corresponde al 0,16% de la contratación
C80: Esp. Gerencia Para el Desarrollo Organizacional | G80: 0 | K80: No aplica
C81: Esp. En Educación Ambiental Y Desarrollo De La Comunidad | G81: 0 | K81: No aplica
C82: Esp. En Procesos Pedagógicos del Entrenamiento Deportivo | G82: 0 | K82: No aplica
C83: Esp. En Gestión De Sistemas De Información Gerencial | G83: 3 | K83: La vinculación de profesores tiempo completo del programa Esp. En Gestión De Sistemas De Información Gerencial corresponde al 0,48% de la contratación
C84: Esp. En Agronegocios Sostenibles | G84: 2 | K84: La vinculación de profesores tiempo completo del programa Esp. Agronegocios sostenibles corresponde al 0,32% de la contratación
C85: Esp. En Gerencia para la Transformación Digital | G85: 1 | K85: La vinculación de profesores tiempo completo del programa Esp. Gerencia para la Transformación Digital corresponde al 0,16% de la contratación
C86: Esp. En Marketing Digital | G86: 1 | K86: La vinculación de profesores tiempo completo del programa Esp. En Marketing Digital corresponde al 0,16% de la contratación
C87: Esp. En Gestión Pública | G87: 1 | K87: La vinculación de profesores tiempo completo del programa Esp. En Gestión Pública corresponde al 0,16% de la contratación
G90: Comunicaciones | J90: Por Laboratorio
G91: Formación y Aprendizaje | J91: Otros
G92: Ciencia, Tecnología e Innovación | J92: No Aplica
G93: Interacción Social Universitaria
G94: Bienestar Universitario
G95: Admisiones y Registro
G96: Graduados
G97: Dialogando con el Mundo
G98: Talento Humano
G99: Jurídica
G100: Financiera
G101: Sistemas y Tecnología
G102: Bienes y Servicios
G103: Documental
G104: Apoyo Académico
G105: Control Interno
G106: Control Disciplinario
G107: Servicio de Atención al Ciudadano

Sheet MFA-14
B2: REGRESAR
E5: MACROPROCESO ESTRATÉGICO | M5: CÓDIGO: ESGr027
E6: PROCESO GESTIÓN SISTEMAS INTEGRADOS - CALIDAD | M6: VERSIÓN: 8
E7: MATRIZ DE MEDICIÓN Y SEGUIMIENTO A LOS PROCESOS DE GESTIÓN | M7: VIGENCIA: 2023-07-28
M8: PÁGINA: 3 de 7
C10: FICHA DE INDICADOR
C12: MACROPROCESO | E12: Misional | I12: NOMBRE DEL INDICADOR | K12: Relación profesor - estudiante (Especializaciones y Maestrías)
C13: PROCESO GESTIÓN | E13: Formación y Aprendizaje
C14: RESPONSABLE DE MEDICIÓN | E14: Vicerrectoría Académica - Dirección Instituto de Posgrados
C16: 1. COMPORTAMIENTO DE INDICADOR
C17: CLASIFICACIÓN DE LA MEDICIÓN | E17: 1 | H17: TIPO DE INDICADOR | J17: Acreditación | L17: META | N17: 1
C18: FORMULA | E18: NUMERADOR | G18: N° de programas académicos con relación 1/30 por periodo académico *100 | L18: UNIDAD DE MEDIDA | N18: Porcentual
E19: DENOMINADOR | G19: N° total de programas académicos
C20: TENDENCIA | E20: Positiva | H20: NIVEL DE SEGREGACIÓN * | J20: No Aplica | L20: ESCALA
L21: Deficiente | M21: Aceptable | N21: Bueno | O21: Excelente
L22: 0% - 84% | M22: 85% - 94% | N22: 95% - 100% | O22: N/A
C23: ORIGEN DE DATOS NUMERADOR | E23: Base de datos Admisiones y Registro - Talento Humano - Desarrollo Académico | H23: FRECUENCIA DE LA MEDICIÓN | J23: SEMESTRAL | L23: FRECUENCIA DE RESULTADO | N23: SEMESTRAL
C24: ORIGEN DE DATOS DENOMINADOR | E24: Base de datos Admisiones y Registro - Talento Humano - Desarrollo Académico
C26: RESULTADOS
J27: ANÁLISIS DE DATOS
J28: 2024-1: Los 7 programas de posgrados relacionados en el presente indicador, hace referencia a: 1. Doctorado en ciencias de la educación, cuenta con un registro de 19 estudiantes y 4 profesores, haciendo la relación de 4,8 estudiantes por profesor. - Resultado: CUMPLE 2. Esp. en procesos del entrenamiento deportivo cuenta con un registro de 8 estudiantes y 1 profesor, haciendo una relación de 8 estudiantes por profesor. - Resultado: CUMPLE 3. Esp. en gerencia para el desarrollo organizacional cuenta con un registro de 80 estudiantes y 1 profesor, haciendo una relación de 80 estudiantes por profesor. Resultado - NO CUMPLE 4. Esp. en educación ambiental y desarrollo de la comunidad cuenta con un registro de 6 estudiantes y 2 profesores, haciendo una relación de 3 estudiantes por profesor. Resultado - CUMPLE 5. Esp. en gestión de sistemas de información gerencial cuenta con un registro de 71 estudiantes y 3 profesores, haciendo una relación de 23,7 estudiantes por profesor. Resultado - CUMPLE 6. Maestría en ciencias ambientales cuenta con 12 estudiantes y 2 profesores, haciendo una relación de 6 estudiantes por profesor. Resultado - CUMPLE 7. Maestría en educación cuenta con 12 estudiantes y 2 profesores, haciendo una relación de 6 estudiantes por profesor. Resultado - CUMPLE 2024-2: Los 10 programas de posgrados relacionados en el presente indicador, hacen referencia a: 1. Doctorado en Ciencias de la Educación, cuenta con un registro de 18 estudiantes y 5 profesores TCO, haciendo la relación de 3 estudiantes por profesor. - Resultado: CUMPLE 2. Esp. en Agronegocios Sostenibles cuenta con un registro de 10 estudiantes y 5 profesores TCO, haciendo una relación de 2 estudiantes por profesor. - Resultado: CUMPLE 3. Esp. en Analítica Aplicada a Negocios cuenta con un registro de 11 estudiantes y 4 profesores TCO, haciendo una relación de 2,75 estudiantes por profesor. - Resultado: CUMPLE 4. Esp. en Educación Ambiental cuenta con un registro de 17 estudiantes y 5 profesores TCO, haciendo una relación de 3,4 estudiantes por profesor. Resultado - CUMPLE 5. Esp. en Gerencia para el Desarrollo Organizacional cuenta con un registro de 83 estudiantes y 1 profesores TCO, haciendo una relación de 83 estudiantes por profesor. Resultado - NO CUMPLE 6. Esp. en Gerencia para la Transformación Digital cuenta con un registro de 119 estudiantes y 6 profesores TCO, haciendo una relación de 19,8 estudiantes por profesor. Resultado - CUMPLE 7. Esp. en Gestión de Sistemas de Información Gerencial cuenta con un registro de 17 estudiantes y 1 profesor TCO, haciendo una relación de 17 estudiantes por profesor. Resultado - CUMPLE 8. Esp. en Gestión Pública cuenta con un registro de 36 estudiantes y 4 profesores TCO, haciendo una relación de 9 estudiantes por profesor. Resultado - CUMPLE 9. Esp. en Marketing Digital cuenta con un registro de 45 estudiantes y 5 profesores TCO, haciendo una relación de 9 estudiantes por profesor. Resultado - CUMPLE 10. Maestría en Ciencias Ambientales cuenta con 2 estudiantes y 1 profesores, haciendo una relación de 2 estudiantes por profesor. Resultado - CUMPLE
J34: ACCIÓN FORMULADA
J35: 2024-1: Se puede establecer que de acuerdo a proporción del presente indicador de 1/30 el proceso de formación y aprendizaje tiene un cubrimiento del 86%. Es pertinente indicar que para el cálculo se tienen en cuenta solo los profesores TCO y se excluyen los profesores HC. Como plan de acción, se revisará para el siguiente programa la modalidad de contratación docente para garantizar la alineación de los procesos del instituto al indicador. 2024-2: Se puede establecer que de acuerdo a proporción del presente indicador de 1/30 el proceso de formación y aprendizaje tiene un cubrimiento del 90%. Para el cálculo se tienen en cuenta solo los profesores TCO que dictan en varios programas, razón por la cual el mismo docente se cuenta en todos los programas en los cuales tiene cátedra asignada. Se excluyen los profesores HC. Como plan de acción, se revisará para el siguiente programa la modalidad de contratación docente para garantizar la alineación de los procesos del instituto al indicador.
J41: RESPONSABLE
J42: =E14 -> Vicerrectoría Académica - Dirección Instituto de Posgrados
C45: PERIODO DE EVALUACIÓN
C46: MES | D46: =IF(J23="MENSUAL","ENERO",IF(J23="TRIMESTRAL","MARZO",IF(J23="SEMESTRAL","JUNIO",IF(J23="ANUAL",YEAR(TODAY()),"")))) -> JUNIO | E46: =IF(J23="MENSUAL","FEBRERO",IF(J23="TRIMESTRAL","JUNIO",IF(J23="SEMESTRAL","DICIEMBRE",""))) -> DICIEMBRE | F46: =IF(J23="MENSUAL","MARZO",IF(J23="TRIMESTRAL","SEPTIEMBRE","")) ->  | G46: =IF(J23="MENSUAL","ABRIL",IF(J23="TRIMESTRAL","DICIEMBRE","")) ->  | H46: =IF(J23="MENSUAL","MAYO","") ->  | I46: =IF(J23="MENSUAL","JUNIO","") ->  | J46: =IF(J23="MENSUAL","JULIO","") ->  | K46: =IF(J23="MENSUAL","AGOSTO","") ->  | L46: =IF(J23="MENSUAL","SEPTIEMBRE","") ->  | M46: =IF(J23="MENSUAL","OCTUBRE","") ->  | N46: =IF(J23="MENSUAL","NOVIEMBRE","") ->  | O46: =IF(J23="MENSUAL","DICIEMBRE","") -> 
C47: =G18 -> N° de programas académicos con relación 1/30 por periodo académico *100 | D47: 6 | E47: 9
C48: =G19 -> N° total de programas académicos | D48: 7 | E48: 10
C49: VALOR | D49: =IFERROR(IF($E$17=1,D47/D48,IF($E$17=2,D47,"")),"") -> 0.8571428571 | E49: =IFERROR(IF($E$17=1,E47/E48,IF($E$17=2,E47,"")),"") -> 0.9
C50: META PONDERADA | D50: =IF(AND(N23="ANUAL",J23="MENSUAL"),N17/12,IF(AND(N23="ANUAL",J23="TRIMESTRAL"),N17/4,IF(AND(N23="ANUAL",J23="SEMESTRAL"),N17/2,IF(AND(N23="ANUAL",J23="ANUAL"),N17,IF(AND(N23="SEMESTRAL",J23="MENSUAL"),N17/6,IF(AND(N23="SEMESTRAL",J23="TRIMESTRAL"),N17/2,IF(AND(N23="SEMESTRAL",J23="SEMESTRAL"),N17,IF(AND(N23="SEMESTRAL",J23="ANUAL"),"REVISAR FRECUENCIAS",IF(AND(N23="TRIMESTRAL",J23="MENSUAL"),N17/3,IF(AND(N23="TRIMESTRAL",J23="TRIMESTRAL"),N17,IF(AND(N23="TRIMESTRAL",J23="SEMESTRAL"),"REVISAR FRECUENCIAS",IF(AND(N23="TRIMESTRAL",J23="ANUAL"),"REVISAR FRECUENCIAS",IF(AND(N23="MENSUAL",J23="MENSUAL"),N17,IF(AND(N23="MENSUAL",J23="TRIMESTRAL"),"REVISAR FRECUENCIAS",IF(AND(N23="MENSUAL",J23="SEMESTRAL"),"REVISAR FRECUENCIAS",IF(AND(N23="MENSUAL",J23="ANUAL"),"REVISAR FRECUENCIAS","")))))))))))))))) -> 1 | E50: =IF(AND(N23="ANUAL",J23="MENSUAL"),N17/12+D50,IF(AND(N23="ANUAL",J23="TRIMESTRAL"),N17/4+D50,IF(AND(N23="ANUAL",J23="SEMESTRAL"),N17/2+D50,IF(AND(N23="SEMESTRAL",J23="MENSUAL"),N17/6+D50,IF(AND(N23="SEMESTRAL",J23="TRIMESTRAL"),N17/2+D50,IF(AND(N23="SEMESTRAL",J23="SEMESTRAL"),N17,IF(AND(N23="TRIMESTRAL",J23="MENSUAL"),N17/3+D50,IF(AND(N23="TRIMESTRAL",J23="TRIMESTRAL"),N17,IF(AND(N23="MENSUAL",J23="MENSUAL"),N17,""))))))))) -> 1 | F50: =IF(AND(N23="ANUAL",J23="MENSUAL"),N17/12+E50,IF(AND(N23="ANUAL",J23="TRIMESTRAL"),N17/4+E50,IF(AND(N23="SEMESTRAL",J23="MENSUAL"),N17/6+E50,IF(AND(N23="SEMESTRAL",J23="TRIMESTRAL"),N17/2,IF(AND(N23="TRIMESTRAL",J23="MENSUAL"),N17/3+E50,IF(AND(N23="TRIMESTRAL",J23="TRIMESTRAL"),N17,IF(AND(N23="MENSUAL",J23="MENSUAL"),N17,""))))))) ->  | G50: =IF(AND(N23="ANUAL",J23="MENSUAL"),N17/12+F50,IF(AND(N23="ANUAL",J23="TRIMESTRAL"),N17/4+F50,IF(AND(N23="SEMESTRAL",J23="MENSUAL"),N17/6+F50,IF(AND(N23="SEMESTRAL",J23="TRIMESTRAL"),N17/2+F50,IF(AND(N23="TRIMESTRAL",J23="MENSUAL"),N17/3,IF(AND(N23="TRIMESTRAL",J23="TRIMESTRAL"),N17,IF(AND(N23="MENSUAL",J23="MENSUAL"),N17,""))))))) ->  | H50: =IF(AND($N$23="ANUAL",$J$23="MENSUAL"),$N$17/12+G50,IF(AND(N23="SEMESTRAL",J23="MENSUAL"),N17/6+G50,IF(AND(N23="TRIMESTRAL",J23="MENSUAL"),N17/3+G50,IF(AND(N23="MENSUAL",J23="MENSUAL"),N17,"")))) ->  | I50: =IF(AND($N$23="ANUAL",$J$23="MENSUAL"),$N$17/12+H50,IF(AND(N23="SEMESTRAL",J23="MENSUAL"),N17/6+H50,IF(AND(N23="TRIMESTRAL",J23="MENSUAL"),N17/3+H50,IF(AND(N23="MENSUAL",J23="MENSUAL"),N17,"")))) ->  | J50: =IF(AND($N$23="ANUAL",$J$23="MENSUAL"),$N$17/12+I50,IF(AND(N23="SEMESTRAL",J23="MENSUAL"),N17/6,IF(AND(N23="TRIMESTRAL",J23="MENSUAL"),N17/3,IF(AND(N23="MENSUAL",J23="MENSUAL"),N17,"")))) ->  | K50: =IF(AND($N$23="ANUAL",$J$23="MENSUAL"),$N$17/12+J50,IF(AND(N23="SEMESTRAL",J23="MENSUAL"),N17/6+J50,IF(AND(N23="TRIMESTRAL",J23="MENSUAL"),N17/3+J50,IF(AND(N23="MENSUAL",J23="MENSUAL"),N17,"")))) ->  | L50: =IF(AND($N$23="ANUAL",$J$23="MENSUAL"),$N$17/12+K50,IF(AND(N23="SEMESTRAL",J23="MENSUAL"),N17/6+K50,IF(AND(N23="TRIMESTRAL",J23="MENSUAL"),N17/3+K50,IF(AND(N23="MENSUAL",J23="MENSUAL"),N17,"")))) ->  | M50: =IF(AND($N$23="ANUAL",$J$23="MENSUAL"),$N$17/12+L50,IF(AND(N23="SEMESTRAL",J23="MENSUAL"),N17/6+L50,IF(AND(N23="TRIMESTRAL",J23="MENSUAL"),N17/3,IF(AND(N23="MENSUAL",J23="MENSUAL"),N17,"")))) ->  | N50: =IF(AND($N$23="ANUAL",$J$23="MENSUAL"),$N$17/12+M50,IF(AND(N23="SEMESTRAL",J23="MENSUAL"),N17/6+M50,IF(AND(N23="TRIMESTRAL",J23="MENSUAL"),N17/3+M50,IF(AND(N23="MENSUAL",J23="MENSUAL"),N17,"")))) ->  | O50: =IF(AND($N$23="ANUAL",$J$23="MENSUAL"),$N$17/12+N50,IF(AND(N23="SEMESTRAL",J23="MENSUAL"),N17/6+N50,IF(AND(N23="TRIMESTRAL",J23="MENSUAL"),N17/3+N50,IF(AND(N23="MENSUAL",J23="MENSUAL"),N17,"")))) -> 
C52: NIVEL DE SEGREGACIÓN *
C53: UNIDAD SEGREGADA (Ej. Facultad, Programa Académico, Área) | G53: RESULTADO | K53: ANÁLISIS DE DATOS SEGREGADO
C62: Diagonal 18 No. 20-29 Fusagasugá – Cundinamarca Teléfono (601) 8281483 Línea Gratuita 018000180414 www.ucundinamarca.edu.co E-mail: info@ucundinamarca.edu.co NIT: 890.680.062-2
C63: Documento controlado por el Sistema de Gestión de la Calidad Asegúrese que corresponde a la última versión consultando el Portal Institucional
G72: Estratégico | J72: Eficacia
G73: Misional | J73: Eficiencia
G74: Apoyo | J74: Acreditación
G75: Seguimiento, Medición, Análisis y Evaluación | J75: Positiva
G76: Direccionamiento Estratégico | J76: Negativa
G77: Planeación Institucional | J77: Por Unidad Regional
G78: Proyectos Especiales y Relaciones Interinstitucionales | J78: Por Facultad
G79: Sistemas Integrados | J79: Por Programa Académico
G80: Autoevaluación y Acreditación | J80: Por área
G81: Comunicaciones | J81: Por Laboratorio
G82: Formación y Aprendizaje | J82: Otros
G83: Ciencia, Tecnología e Innovación | J83: No Aplica
G84: Interacción Social Universitaria
G85: Bienestar Universitario
G86: Admisiones y Registro
G87: Graduados
G88: Dialogando con el Mundo
G89: Talento Humano
G90: Jurídica
G91: Financiera
G92: Sistemas y Tecnología
G93: Bienes y Servicios
G94: Documental
G95: Apoyo Académico
G96: Control Interno
G97: Control Disciplinario
G98: Servicio de Atención al Ciudadano

Sheet MFA-15
B2: REGRESAR
E5: MACROPROCESO ESTRATÉGICO | M5: CÓDIGO: ESGr027
E6: PROCESO GESTIÓN SISTEMAS INTEGRADOS - CALIDAD | M6: VERSIÓN: 8
E7: MATRIZ DE MEDICIÓN Y SEGUIMIENTO A LOS PROCESOS DE GESTIÓN | M7: VIGENCIA: 2023-07-28
M8: PÁGINA: 4 de 7
C10: FICHA DE INDICADOR
C12: MACROPROCESO | E12: Misional | I12: NOMBRE DEL INDICADOR | K12: Relación profesor - estudiante
C13: PROCESO GESTIÓN | E13: Formación y Aprendizaje
C14: RESPONSABLE DE MEDICIÓN | E14: Vicerrectoría Académica
C16: 1. COMPORTAMIENTO DE INDICADOR
C17: CLASIFICACIÓN DE LA MEDICIÓN | E17: 1 | H17: TIPO DE INDICADOR | J17: Acreditación | L17: META | N17: 0.95
C18: FORMULA | E18: NUMERADOR | G18: N° de programas académicos con relación 1/35 por período académico *100 | L18: UNIDAD DE MEDIDA | N18: Porcentual
E19: DENOMINADOR | G19: N° total de programas académicos
C20: TENDENCIA | E20: Positiva | H20: NIVEL DE SEGREGACIÓN * | J20: No Aplica | L20: ESCALA
L21: Deficiente | M21: Aceptable | N21: Bueno | O21: Excelente
L22: 0% - 79% | M22: 80% - 89% | N22: 90% - 95% | O22: 96% - 100%
C23: ORIGEN DE DATOS NUMERADOR | E23: Base de datos Admisiones y Registro - Talento Humano - Desarrollo Académico | H23: FRECUENCIA DE LA MEDICIÓN | J23: SEMESTRAL | L23: FRECUENCIA DE RESULTADO | N23: SEMESTRAL
C24: ORIGEN DE DATOS DENOMINADOR | E24: Base de datos Admisiones y Registro - Talento Humano - Desarrollo Académico
C26: RESULTADOS
J27: ANÁLISIS DE DATOS
J28: 2024-1:Para el primer periodo académico de la vigencia 2024, se obtuvo como resultado 29 programas académicos de 27 con relación de un (1) profesor por cada 35 estudiantes (Según última actualización). Es de mencionar que la Universidad de Cundinamarca para este periodo contó con un total de 11.976 estudiantes de pregrado y un total de 574 profesores, lo que nos da una relación promedio total de 21 estudiantes por profesor. Programas que no cumplen con el indicador: Administración de empresas Facatativá presenta una relación de 1 gestor por cada 40 estudiantes. Contaduría pública Facatativá presenta una relación de 1 gestor por cada 37 estudiantes. 2024-2: Para el segundo periodo académico de la vigencia 2024, se obtuvo como resultado 31 programas académicos de 28 con relación de un (1) profesor por cada 35 estudiantes (Según última actualización). Es de mencionar que la Universidad de Cundinamarca para este periodo contó con un total de 12111 estudiantes de pregrado y un total de 578 profesores, lo que nos da una relación promedio total de 21 estudiantes por profesor.
J34: ACCIÓN FORMULADA
J35: 2024-1: De conformidad con los resultados del periodo 2024-1, se puede concluir que la relación de profesores/estudiantes es óptima para el desarrollo del proceso de Formación y Aprendizaje. La acción formulada es fortalecer la contratación de profesores tiempo completo en los programas académicos que superan la relación de 1/35 en el marco del cumplimiento de los objetivos institucionales, del Ministerio de Educación Nacional y el CNA. 2024-2: De acuerdo con los resultados obtenidos durante el periodo 2024-2, se concluye que la relación actual entre profesores y estudiantes es adecuada para el desarrollo del proceso de formación y aprendizaje; no obstante, con el objetivo de seguir mejorando este indicador y atender las necesidades de los programas académicos que superan la proporción de 1 profesor por cada 35 estudiantes, se propone fortalecer la contratación de profesores de tiempo completo, acción que permitirá no solo optimizar la calidad del acompañamiento académico y personal al estudiante, sino también fomentar la investigación, garantizar la sostenibilidad de los programas y cumplir con los estándares establecidos por el Ministerio de Educación Nacional, el Consejo Nacional de Acreditación (CNA) y los objetivos institucionales, consolidando así el compromiso de la institución con la excelencia educativa
J41: RESPONSABLE
J42: =E14 -> Vicerrectoría Académica
C45: PERIODO DE EVALUACIÓN
C46: MES | D46: =IF(J23="MENSUAL","ENERO",IF(J23="TRIMESTRAL","MARZO",IF(J23="SEMESTRAL","JUNIO",IF(J23="ANUAL",YEAR(TODAY()),"")))) -> JUNIO | E46: =IF(J23="MENSUAL","FEBRERO",IF(J23="TRIMESTRAL","JUNIO",IF(J23="SEMESTRAL","DICIEMBRE",""))) -> DICIEMBRE | F46: =IF(J23="MENSUAL","MARZO",IF(J23="TRIMESTRAL","SEPTIEMBRE","")) ->  | G46: =IF(J23="MENSUAL","ABRIL",IF(J23="TRIMESTRAL","DICIEMBRE","")) ->  | H46: =IF(J23="MENSUAL","MAYO","") ->  | I46: =IF(J23="MENSUAL","JUNIO","") ->  | J46: =IF(J23="MENSUAL","JULIO","") ->  | K46: =IF(J23="MENSUAL","AGOSTO","") ->  | L46: =IF(J23="MENSUAL","SEPTIEMBRE","") ->  | M46: =IF(J23="MENSUAL","OCTUBRE","") ->  | N46: =IF(J23="MENSUAL","NOVIEMBRE","") ->  | O46: =IF(J23="MENSUAL","DICIEMBRE","") -> 
C47: =G18 -> N° de programas académicos con relación 1/35 por período académico *100 | D47: 27 | E47: 28
C48: =G19 -> N° total de programas académicos | D48: 29 | E48: 31
C49: VALOR | D49: =IFERROR(IF($E$17=1,D47/D48,IF($E$17=2,D47,"")),"") -> 0.9310344828 | E49: =IFERROR(IF($E$17=1,E47/E48,IF($E$17=2,E47,"")),"") -> 0.9032258065
C50: META PONDERADA | D50: =IF(AND(N23="ANUAL",J23="MENSUAL"),N17/12,IF(AND(N23="ANUAL",J23="TRIMESTRAL"),N17/4,IF(AND(N23="ANUAL",J23="SEMESTRAL"),N17/2,IF(AND(N23="ANUAL",J23="ANUAL"),N17,IF(AND(N23="SEMESTRAL",J23="MENSUAL"),N17/6,IF(AND(N23="SEMESTRAL",J23="TRIMESTRAL"),N17/2,IF(AND(N23="SEMESTRAL",J23="SEMESTRAL"),N17,IF(AND(N23="SEMESTRAL",J23="ANUAL"),"REVISAR FRECUENCIAS",IF(AND(N23="TRIMESTRAL",J23="MENSUAL"),N17/3,IF(AND(N23="TRIMESTRAL",J23="TRIMESTRAL"),N17,IF(AND(N23="TRIMESTRAL",J23="SEMESTRAL"),"REVISAR FRECUENCIAS",IF(AND(N23="TRIMESTRAL",J23="ANUAL"),"REVISAR FRECUENCIAS",IF(AND(N23="MENSUAL",J23="MENSUAL"),N17,IF(AND(N23="MENSUAL",J23="TRIMESTRAL"),"REVISAR FRECUENCIAS",IF(AND(N23="MENSUAL",J23="SEMESTRAL"),"REVISAR FRECUENCIAS",IF(AND(N23="MENSUAL",J23="ANUAL"),"REVISAR FRECUENCIAS","")))))))))))))))) -> 0.95 | E50: =IF(AND(N23="ANUAL",J23="MENSUAL"),N17/12+D50,IF(AND(N23="ANUAL",J23="TRIMESTRAL"),N17/4+D50,IF(AND(N23="ANUAL",J23="SEMESTRAL"),N17/2+D50,IF(AND(N23="SEMESTRAL",J23="MENSUAL"),N17/6+D50,IF(AND(N23="SEMESTRAL",J23="TRIMESTRAL"),N17/2+D50,IF(AND(N23="SEMESTRAL",J23="SEMESTRAL"),N17,IF(AND(N23="TRIMESTRAL",J23="MENSUAL"),N17/3+D50,IF(AND(N23="TRIMESTRAL",J23="TRIMESTRAL"),N17,IF(AND(N23="MENSUAL",J23="MENSUAL"),N17,""))))))))) -> 0.95 | F50: =IF(AND(N23="ANUAL",J23="MENSUAL"),N17/12+E50,IF(AND(N23="ANUAL",J23="TRIMESTRAL"),N17/4+E50,IF(AND(N23="SEMESTRAL",J23="MENSUAL"),N17/6+E50,IF(AND(N23="SEMESTRAL",J23="TRIMESTRAL"),N17/2,IF(AND(N23="TRIMESTRAL",J23="MENSUAL"),N17/3+E50,IF(AND(N23="TRIMESTRAL",J23="TRIMESTRAL"),N17,IF(AND(N23="MENSUAL",J23="MENSUAL"),N17,""))))))) ->  | G50: =IF(AND(N23="ANUAL",J23="MENSUAL"),N17/12+F50,IF(AND(N23="ANUAL",J23="TRIMESTRAL"),N17/4+F50,IF(AND(N23="SEMESTRAL",J23="MENSUAL"),N17/6+F50,IF(AND(N23="SEMESTRAL",J23="TRIMESTRAL"),N17/2+F50,IF(AND(N23="TRIMESTRAL",J23="MENSUAL"),N17/3,IF(AND(N23="TRIMESTRAL",J23="TRIMESTRAL"),N17,IF(AND(N23="MENSUAL",J23="MENSUAL"),N17,""))))))) ->  | H50: =IF(AND($N$23="ANUAL",$J$23="MENSUAL"),$N$17/12+G50,IF(AND(N23="SEMESTRAL",J23="MENSUAL"),N17/6+G50,IF(AND(N23="TRIMESTRAL",J23="MENSUAL"),N17/3+G50,IF(AND(N23="MENSUAL",J23="MENSUAL"),N17,"")))) ->  | I50: =IF(AND($N$23="ANUAL",$J$23="MENSUAL"),$N$17/12+H50,IF(AND(N23="SEMESTRAL",J23="MENSUAL"),N17/6+H50,IF(AND(N23="TRIMESTRAL",J23="MENSUAL"),N17/3+H50,IF(AND(N23="MENSUAL",J23="MENSUAL"),N17,"")))) ->  | J50: =IF(AND($N$23="ANUAL",$J$23="MENSUAL"),$N$17/12+I50,IF(AND(N23="SEMESTRAL",J23="MENSUAL"),N17/6,IF(AND(N23="TRIMESTRAL",J23="MENSUAL"),N17/3,IF(AND(N23="MENSUAL",J23="MENSUAL"),N17,"")))) ->  | K50: =IF(AND($N$23="ANUAL",$J$23="MENSUAL"),$N$17/12+J50,IF(AND(N23="SEMESTRAL",J23="MENSUAL"),N17/6+J50,IF(AND(N23="TRIMESTRAL",J23="MENSUAL"),N17/3+J50,IF(AND(N23="MENSUAL",J23="MENSUAL"),N17,"")))) ->  | L50: =IF(AND($N$23="ANUAL",$J$23="MENSUAL"),$N$17/12+K50,IF(AND(N23="SEMESTRAL",J23="MENSUAL"),N17/6+K50,IF(AND(N23="TRIMESTRAL",J23="MENSUAL"),N17/3+K50,IF(AND(N23="MENSUAL",J23="MENSUAL"),N17,"")))) ->  | M50: =IF(AND($N$23="ANUAL",$J$23="MENSUAL"),$N$17/12+L50,IF(AND(N23="SEMESTRAL",J23="MENSUAL"),N17/6+L50,IF(AND(N23="TRIMESTRAL",J23="MENSUAL"),N17/3,IF(AND(N23="MENSUAL",J23="MENSUAL"),N17,"")))) ->  | N50: =IF(AND($N$23="ANUAL",$J$23="MENSUAL"),$N$17/12+M50,IF(AND(N23="SEMESTRAL",J23="MENSUAL"),N17/6+M50,IF(AND(N23="TRIMESTRAL",J23="MENSUAL"),N17/3+M50,IF(AND(N23="MENSUAL",J23="MENSUAL"),N17,"")))) ->  | O50: =IF(AND($N$23="ANUAL",$J$23="MENSUAL"),$N$17/12+N50,IF(AND(N23="SEMESTRAL",J23="MENSUAL"),N17/6+N50,IF(AND(N23="TRIMESTRAL",J23="MENSUAL"),N17/3+N50,IF(AND(N23="MENSUAL",J23="MENSUAL"),N17,"")))) -> 
C52: NIVEL DE SEGREGACIÓN *
C53: UNIDAD SEGREGADA (Ej. Facultad, Programa Académico, Área) | G53: RESULTADO | K53: ANÁLISIS DE DATOS SEGREGADO
C62: Diagonal 18 No. 20-29 Fusagasugá – Cundinamarca Teléfono (601) 8281483 Línea Gratuita 018000180414 www.ucundinamarca.edu.co E-mail: info@ucundinamarca.edu.co NIT: 890.680.062-2
C63: Documento controlado por el Sistema de Gestión de la Calidad Asegúrese que corresponde a la última versión consultando el Portal Institucional
G72: Estratégico | J72: Eficacia
G73: Misional | J73: Eficiencia
G74: Apoyo | J74: Acreditación
G75: Seguimiento, Medición, Análisis y Evaluación | J75: Positiva
G76: Direccionamiento Estratégico | J76: Negativa
G77: Planeación Institucional | J77: Por Unidad Regional
G78: Proyectos Especiales y Relaciones Interinstitucionales | J78: Por Facultad
G79: Sistemas Integrados | J79: Por Programa Académico
G80: Autoevaluación y Acreditación | J80: Por área
G81: Comunicaciones | J81: Por Laboratorio
G82: Formación y Aprendizaje | J82: Otros
G83: Ciencia, Tecnología e Innovación | J83: No Aplica
G84: Interacción Social Universitaria
G85: Bienestar Universitario
G86: Admisiones y Registro
G87: Graduados
G88: Dialogando con el Mundo
G89: Talento Humano
G90: Jurídica
G91: Financiera
G92: Sistemas y Tecnología
G93: Bienes y Servicios
G94: Documental
G95: Apoyo Académico
G96: Control Interno
G97: Control Disciplinario
G98: Servicio de Atención al Ciudadano

Sheet MFA-16
B2: REGRESAR
E5: MACROPROCESO ESTRATÉGICO | M5: CÓDIGO: ESGr027
E6: PROCESO GESTIÓN SISTEMAS INTEGRADOS - CALIDAD | M6: VERSIÓN: 8
E7: MATRIZ DE MEDICIÓN Y SEGUIMIENTO A LOS PROCESOS DE GESTIÓN | M7: VIGENCIA: 2023-07-28
M8: PÁGINA: 5 de 7
C10: FICHA DE INDICADOR
C12: MACROPROCESO | E12: Misional | I12: NOMBRE DEL INDICADOR | K12: Resultados de aprendizaje
C13: PROCESO GESTIÓN | E13: Formación y Aprendizaje
C14: RESPONSABLE DE MEDICIÓN | E14: Vicerrectoría Académica
C16: 1. COMPORTAMIENTO DE INDICADOR
C17: CLASIFICACIÓN DE LA MEDICIÓN | E17: 1 | H17: TIPO DE INDICADOR | J17: Acreditación | L17: META | N17: 0.9
C18: FORMULA | E18: NUMERADOR | G18: N° de estudiantes promovidos *100 | L18: UNIDAD DE MEDIDA | N18: Porcentual
E19: DENOMINADOR | G19: N° total de estudiantes matriculados
C20: TENDENCIA | E20: Positiva | H20: NIVEL DE SEGREGACIÓN * | J20: Por Programa Académico | L20: ESCALA
L21: Deficiente | M21: Aceptable | N21: Bueno | O21: Excelente
L22: 0% - 40% | M22: 41% - 70% | N22: 71% - 90% | O22: ≥ 91%
C23: ORIGEN DE DATOS NUMERADOR | E23: Base de datos Admisiones y Registro | H23: FRECUENCIA DE LA MEDICIÓN | J23: SEMESTRAL | L23: FRECUENCIA DE RESULTADO | N23: SEMESTRAL
C24: ORIGEN DE DATOS DENOMINADOR | E24: Base de datos Admisiones y Registro
C26: RESULTADOS
J27: ANÁLISIS DE DATOS
J28: 2024-1: De 11.976 estudiantes matriculados, 7997 pertenecen a programas resignificados curricularmente y que operan en el MEDIT a través del Campo Multidimensional de Aprendizaje, y su contenido se formula desde los Resultados Esperados de Aprendizaje. Para esta medición 5156 estudiantes (64%) se categorizan como PROMOVIDOS (si o si aprueban todos sus campos de aprendizaje en el periodo académico donde los matriculó). Los siguientes programas se ubican en la escala excelente: Especialización en educación ambiental y desarrollo de la comunidad. El siguiente programa se ubica en la escala en la escala bueno: Ingeniería de Software. Los siguientes programas se ubican en la escala aceptable: Enfermería, Ingeniería de Sistemas y computación , Ingeniería Industrial, Administración de Empresas, Ingeniería Agronómica, Ingeniería Ambiental, Contaduría Pública, Zootecnia. El siguiente programa se ubica en la escala deficiente: Profesional en ciencias del deporte. 2024-2: El resultado para el segundo periodo académico de la vigencia 2024 fue de 71820 estudiantes promovidos de los 88938 estudiantes matriculados, obteniendo así un 81% del indicador. De tal manera que 17118 estudiantes perdieron por lo menos una materia, CADI o Núcleo Temático. Es importante destacar que se aumenta el 8% del indicador con referencia a la medición del primer periodo académico del año 2024, ya que en esta medición se obtuvo el 64%. De igual manera se determina que el indicador asciende a la escala de clasificación de bueno, sin embrago a través de acción formulada se espera ascender en el cumplimiento con relación a la escala.
J34: ACCIÓN FORMULADA
J35: 2024-2: Mediante las alertas tempranas emitidas por la Oficina de Desarrollo Académico, realizar desde las facultades un riguroso seguimiento a aquellos estudiantes que se identifican con bajo rendimiento académico y de esta manera lograr el cumplimiento de los Resultados Esperados de Aprendizaje REA de acuerdo con lo establecido en el Modelo Educativo Digital Transmoderno MEDIT.
J41: RESPONSABLE
J42: =E14 -> Vicerrectoría Académica
C45: PERIODO DE EVALUACIÓN
C46: MES | D46: =IF(J23="MENSUAL","ENERO",IF(J23="TRIMESTRAL","MARZO",IF(J23="SEMESTRAL","JUNIO",IF(J23="ANUAL",YEAR(TODAY()),"")))) -> JUNIO | E46: =IF(J23="MENSUAL","FEBRERO",IF(J23="TRIMESTRAL","JUNIO",IF(J23="SEMESTRAL","DICIEMBRE",""))) -> DICIEMBRE | F46: =IF(J23="MENSUAL","MARZO",IF(J23="TRIMESTRAL","SEPTIEMBRE","")) ->  | G46: =IF(J23="MENSUAL","ABRIL",IF(J23="TRIMESTRAL","DICIEMBRE","")) ->  | H46: =IF(J23="MENSUAL","MAYO","") ->  | I46: =IF(J23="MENSUAL","JUNIO","") ->  | J46: =IF(J23="MENSUAL","JULIO","") ->  | K46: =IF(J23="MENSUAL","AGOSTO","") ->  | L46: =IF(J23="MENSUAL","SEPTIEMBRE","") ->  | M46: =IF(J23="MENSUAL","OCTUBRE","") ->  | N46: =IF(J23="MENSUAL","NOVIEMBRE","") ->  | O46: =IF(J23="MENSUAL","DICIEMBRE","") -> 
C47: =G18 -> N° de estudiantes promovidos *100 | D47: 5156 | E47: 71820
C48: =G19 -> N° total de estudiantes matriculados | D48: 7997 | E48: 88938
C49: VALOR | D49: =IFERROR(IF($E$17=1,D47/D48,IF($E$17=2,D47,"")),"") -> 0.6447417782 | E49: =IFERROR(IF($E$17=1,E47/E48,IF($E$17=2,E47,"")),"") -> 0.8075288403
C50: META PONDERADA | D50: =IF(AND(N23="ANUAL",J23="MENSUAL"),N17/12,IF(AND(N23="ANUAL",J23="TRIMESTRAL"),N17/4,IF(AND(N23="ANUAL",J23="SEMESTRAL"),N17/2,IF(AND(N23="ANUAL",J23="ANUAL"),N17,IF(AND(N23="SEMESTRAL",J23="MENSUAL"),N17/6,IF(AND(N23="SEMESTRAL",J23="TRIMESTRAL"),N17/2,IF(AND(N23="SEMESTRAL",J23="SEMESTRAL"),N17,IF(AND(N23="SEMESTRAL",J23="ANUAL"),"REVISAR FRECUENCIAS",IF(AND(N23="TRIMESTRAL",J23="MENSUAL"),N17/3,IF(AND(N23="TRIMESTRAL",J23="TRIMESTRAL"),N17,IF(AND(N23="TRIMESTRAL",J23="SEMESTRAL"),"REVISAR FRECUENCIAS",IF(AND(N23="TRIMESTRAL",J23="ANUAL"),"REVISAR FRECUENCIAS",IF(AND(N23="MENSUAL",J23="MENSUAL"),N17,IF(AND(N23="MENSUAL",J23="TRIMESTRAL"),"REVISAR FRECUENCIAS",IF(AND(N23="MENSUAL",J23="SEMESTRAL"),"REVISAR FRECUENCIAS",IF(AND(N23="MENSUAL",J23="ANUAL"),"REVISAR FRECUENCIAS","")))))))))))))))) -> 0.9 | E50: =IF(AND(N23="ANUAL",J23="MENSUAL"),N17/12+D50,IF(AND(N23="ANUAL",J23="TRIMESTRAL"),N17/4+D50,IF(AND(N23="ANUAL",J23="SEMESTRAL"),N17/2+D50,IF(AND(N23="SEMESTRAL",J23="MENSUAL"),N17/6+D50,IF(AND(N23="SEMESTRAL",J23="TRIMESTRAL"),N17/2+D50,IF(AND(N23="SEMESTRAL",J23="SEMESTRAL"),N17,IF(AND(N23="TRIMESTRAL",J23="MENSUAL"),N17/3+D50,IF(AND(N23="TRIMESTRAL",J23="TRIMESTRAL"),N17,IF(AND(N23="MENSUAL",J23="MENSUAL"),N17,""))))))))) -> 0.9 | F50: =IF(AND(N23="ANUAL",J23="MENSUAL"),N17/12+E50,IF(AND(N23="ANUAL",J23="TRIMESTRAL"),N17/4+E50,IF(AND(N23="SEMESTRAL",J23="MENSUAL"),N17/6+E50,IF(AND(N23="SEMESTRAL",J23="TRIMESTRAL"),N17/2,IF(AND(N23="TRIMESTRAL",J23="MENSUAL"),N17/3+E50,IF(AND(N23="TRIMESTRAL",J23="TRIMESTRAL"),N17,IF(AND(N23="MENSUAL",J23="MENSUAL"),N17,""))))))) ->  | G50: =IF(AND(N23="ANUAL",J23="MENSUAL"),N17/12+F50,IF(AND(N23="ANUAL",J23="TRIMESTRAL"),N17/4+F50,IF(AND(N23="SEMESTRAL",J23="MENSUAL"),N17/6+F50,IF(AND(N23="SEMESTRAL",J23="TRIMESTRAL"),N17/2+F50,IF(AND(N23="TRIMESTRAL",J23="MENSUAL"),N17/3,IF(AND(N23="TRIMESTRAL",J23="TRIMESTRAL"),N17,IF(AND(N23="MENSUAL",J23="MENSUAL"),N17,""))))))) ->  | H50: =IF(AND($N$23="ANUAL",$J$23="MENSUAL"),$N$17/12+G50,IF(AND(N23="SEMESTRAL",J23="MENSUAL"),N17/6+G50,IF(AND(N23="TRIMESTRAL",J23="MENSUAL"),N17/3+G50,IF(AND(N23="MENSUAL",J23="MENSUAL"),N17,"")))) ->  | I50: =IF(AND($N$23="ANUAL",$J$23="MENSUAL"),$N$17/12+H50,IF(AND(N23="SEMESTRAL",J23="MENSUAL"),N17/6+H50,IF(AND(N23="TRIMESTRAL",J23="MENSUAL"),N17/3+H50,IF(AND(N23="MENSUAL",J23="MENSUAL"),N17,"")))) ->  | J50: =IF(AND($N$23="ANUAL",$J$23="MENSUAL"),$N$17/12+I50,IF(AND(N23="SEMESTRAL",J23="MENSUAL"),N17/6,IF(AND(N23="TRIMESTRAL",J23="MENSUAL"),N17/3,IF(AND(N23="MENSUAL",J23="MENSUAL"),N17,"")))) ->  | K50: =IF(AND($N$23="ANUAL",$J$23="MENSUAL"),$N$17/12+J50,IF(AND(N23="SEMESTRAL",J23="MENSUAL"),N17/6+J50,IF(AND(N23="TRIMESTRAL",J23="MENSUAL"),N17/3+J50,IF(AND(N23="MENSUAL",J23="MENSUAL"),N17,"")))) ->  | L50: =IF(AND($N$23="ANUAL",$J$23="MENSUAL"),$N$17/12+K50,IF(AND(N23="SEMESTRAL",J23="MENSUAL"),N17/6+K50,IF(AND(N23="TRIMESTRAL",J23="MENSUAL"),N17/3+K50,IF(AND(N23="MENSUAL",J23="MENSUAL"),N17,"")))) ->  | M50: =IF(AND($N$23="ANUAL",$J$23="MENSUAL"),$N$17/12+L50,IF(AND(N23="SEMESTRAL",J23="MENSUAL"),N17/6+L50,IF(AND(N23="TRIMESTRAL",J23="MENSUAL"),N17/3,IF(AND(N23="MENSUAL",J23="MENSUAL"),N17,"")))) ->  | N50: =IF(AND($N$23="ANUAL",$J$23="MENSUAL"),$N$17/12+M50,IF(AND(N23="SEMESTRAL",J23="MENSUAL"),N17/6+M50,IF(AND(N23="TRIMESTRAL",J23="MENSUAL"),N17/3+M50,IF(AND(N23="MENSUAL",J23="MENSUAL"),N17,"")))) ->  | O50: =IF(AND($N$23="ANUAL",$J$23="MENSUAL"),$N$17/12+N50,IF(AND(N23="SEMESTRAL",J23="MENSUAL"),N17/6+N50,IF(AND(N23="TRIMESTRAL",J23="MENSUAL"),N17/3+N50,IF(AND(N23="MENSUAL",J23="MENSUAL"),N17,"")))) -> 
C52: NIVEL DE SEGREGACIÓN *
C53: UNIDAD SEGREGADA (Ej. Facultad, Programa Académico, Área) | G53: RESULTADO | K53: ANÁLISIS DE DATOS SEGREGADO
C54: Especialización en educación ambiental y desarrollo de la comunidad | G54: No cuenta con matriculados en el periodo académico | K54: No aplica
C55: Doctorado en ciencias de la educación | G55: =50/71 -> 0.7042253521 | K55: No se cumple el indicador teniendo en cuenta que 50 estudiantes de los 71 matriculados fueron promovidos.
C56: Maestría en Educación | G56: No cuenta con matriculados en el periodo académico | K56: No aplica
C57: Especialización en gerencia para el desarrollo organizacional | G57: =493/493 -> 1 | K57: Se cumple el indicador plenamente teniendo en cuenta que 493 estudiantes de los 493 matriculados fueron promovidos.
C58: Especialización en gestión de sistemas de información gerencial | G58: =48/48 -> 1 | K58: Se cumple el indicador plenamente teniendo en cuenta que 48 estudiantes de los 48 matriculados fueron promovidos.
C59: Especialización en procesos pedagógicos del entrenamiento deportivo | G59: No cuenta con matriculados en el periodo académico | K59: No aplica
C60: Ingeniería de Software | G60: =2529/3012 -> 0.8396414343 | K60: No se cumple el indicador teniendo en cuenta que 2529 estudiantes de los 3012 matriculados fueron promovidos.
C61: Psicología | G61: =1966/2253 -> 0.8726142921 | K61: No se cumple el indicador teniendo en cuenta que 1966 estudiantes de los 2253 matriculados fueron promovidos.
C62: Enfermería | G62: =1571/1786 -> 0.8796192609 | K62: No se cumple el indicador teniendo en cuenta que 1571 estudiantes de los 1786 matriculados fueron promovidos.
C63: Ingeniería de Sistemas y Computación | G63: =11540/14155 -> 0.8152596256 | K63: No se cumple el indicador teniendo en cuenta que 11540 estudiantes de los 14155 matriculados fueron promovidos.
C64: Ingeniería Industrial | G64: =3971/4907 -> 0.8092520889 | K64: No se cumple el indicador teniendo en cuenta que 11540 estudiantes de los 14155 matriculados fueron promovidos.
C65: Administración de Empresas | G65: =15698/18775 -> 0.8361118509 | K65: No se cumple el indicador teniendo en cuenta que 15698 estudiantes de los 18775 matriculados fueron promovidos.
C66: Ingeniería Agronómica | G66: =3040/4162 -> 0.7304180682 | K66: No se cumple el indicador teniendo en cuenta que 3040 estudiantes de los 4162 matriculados fueron promovidos.
C67: Profesional en Ciencias del Deporte y la Educación Física | G67: =3459/4682 -> 0.7387868432 | K67: No se cumple el indicador teniendo en cuenta que 3459 estudiantes de los 4682 matriculados fueron promovidos.
C68: Ingeniería Ambiental | G68: =6729/8418 -> 0.7993585175 | K68: No se cumple el indicador teniendo en cuenta que 6729 estudiantes de los 8418 matriculados fueron promovidos.
C69: Contaduría Publica | G69: =10484/12228 -> 0.8573765129 | K69: No se cumple el indicador teniendo en cuenta que 10484 estudiantes de los 12228 matriculados fueron promovidos.
C70: Lic. En Ciencias Sociales | G70: =864/1003 -> 0.8614157527 | K70: No se cumple el indicador teniendo en cuenta que 864 estudiantes de los 1003 matriculados fueron promovidos.
C71: Música | G71: =916/1298 -> 0.7057010786 | K71: No se cumple el indicador teniendo en cuenta que 916 estudiantes de los 1298 matriculados fueron promovidos.
C72: Ing. Electrónica | G72: =1247/2019 -> 0.6176324913 | K72: No se cumple el indicador teniendo en cuenta que 1247 estudiantes de los 2019 matriculados fueron promovidos.
C73: Ing. Sistemas | G73: =1021/1132 -> 0.9019434629 | K73: Se cumple el indicador plenamente teniendo en cuenta que 1021 estudiantes de los 1132 matriculados fueron promovidos.
C74: Zootecnia | G74: =3764/5636 -> 0.6678495387 | K74: No se cumple el indicador teniendo en cuenta que 3764 estudiantes de los 5636 matriculados fueron promovidos.
C75: Maestría en Ciencias Ambientales | G75: =1/2 -> 0.5 | K75: No se cumple el indicador teniendo en cuenta que 1 estudiante de los 2 matriculados fueron promovidos.
C76: Tecnología en Desarrollo de Software | G76: =272/398 -> 0.6834170854 | K76: No se cumple el indicador teniendo en cuenta que 272 estudiantes de los 398 matriculados fueron promovidos.
C77: Licenciatura en educación básica con énfasis en humanidades: lengua castellana e ingles | G77: No cuenta con matriculados en el periodo académico | K77: NO APLICA
C78: Licenciatura en Matemáticas | G78: =4/4 -> 1 | K78: Se cumple el indicador plenamente teniendo en cuenta que 4 estudiantes de los 4 matriculados fueron promovidos.
C79: Tecnología en Cartografía | G79: =14/18 -> 0.7777777778 | K79: No se cumple el indicador teniendo en cuenta que 14 estudiantes de los 18 matriculados fueron promovidos.
C80: Tecnología en Gestión Turística y Hotelera | G80: =82/113 -> 0.7256637168 | K80: No se cumple el indicador teniendo en cuenta que 82 estudiantes de los 113 matriculados fueron promovidos.
C81: Licenciatura en Educación Básica con Énfasis en Educación Física, Recreación y Deporte | G81: =11/11 -> 1 | K81: Se cumple el indicador plenamente teniendo en cuenta que 11 estudiantes de los 11 matriculados fueron promovidos.
C82: Licenciatura en Educación Básica con Énfasis en Ciencias Sociales | G82: =5/5 -> 1 | K82: Se cumple el indicador plenamente teniendo en cuenta que 5 estudiantes de los 5 matriculados fueron promovidos.
C83: Diagonal 18 No. 20-29 Fusagasugá – Cundinamarca Teléfono (601) 8281483 Línea Gratuita 018000180414 www.ucundinamarca.edu.co E-mail: info@ucundinamarca.edu.co NIT: 890.680.062-2
C84: Documento controlado por el Sistema de Gestión de la Calidad Asegúrese que corresponde a la última versión consultando el Portal Institucional
G93: Estratégico | J93: Eficacia
G94: Misional | J94: Eficiencia
G95: Apoyo | J95: Acreditación
G96: Seguimiento, Medición, Análisis y Evaluación | J96: Positiva
G97: Direccionamiento Estratégico | J97: Negativa
G98: Planeación Institucional | J98: Por Unidad Regional
G99: Proyectos Especiales y Relaciones Interinstitucionales | J99: Por Facultad
G100: Sistemas Integrados | J100: Por Programa Académico
G101: Autoevaluación y Acreditación | J101: Por área
G102: Comunicaciones | J102: Por Laboratorio
G103: Formación y Aprendizaje | J103: Otros
G104: Ciencia, Tecnología e Innovación | J104: No Aplica
G105: Interacción Social Universitaria
G106: Bienestar Universitario
G107: Admisiones y Registro
G108: Graduados
G109: Dialogando con el Mundo
G110: Talento Humano
G111: Jurídica
G112: Financiera
G113: Sistemas y Tecnología
G114: Bienes y Servicios
G115: Documental
G116: Apoyo Académico
G117: Control Interno
G118: Control Disciplinario
G119: Servicio de Atención al Ciudadano

Sheet MFA-20
B2: REGRESAR
E5: MACROPROCESO ESTRATÉGICO | M5: CÓDIGO: ESGr027
E6: PROCESO GESTIÓN SISTEMAS INTEGRADOS - CALIDAD | M6: VERSIÓN: 8
E7: MATRIZ DE MEDICIÓN Y SEGUIMIENTO A LOS PROCESOS DE GESTIÓN | M7: VIGENCIA: 2023-07-28
M8: PÁGINA: 6 de 7
C10: FICHA DE INDICADOR
C12: MACROPROCESO | E12: Misional | I12: NOMBRE DEL INDICADOR | K12: Oportunidad en la atención de solicitudes en el CMA digital
C13: PROCESO GESTIÓN | E13: Formación y Aprendizaje
C14: RESPONSABLE DE MEDICIÓN | E14: Jefe de la oficina de Educación Virtual y a Distancia y vicerector académico
C16: 1. COMPORTAMIENTO DE INDICADOR
C17: CLASIFICACIÓN DE LA MEDICIÓN | E17: 1 | H17: TIPO DE INDICADOR | J17: Eficiencia | L17: META | N17: 0.9
C18: FORMULA | E18: NUMERADOR | G18: Total de solicitudes tramitadas oportunamente *100 | L18: UNIDAD DE MEDIDA | N18: Porcentual
E19: DENOMINADOR | G19: Total de solicitudes
C20: TENDENCIA | E20: Positiva | H20: NIVEL DE SEGREGACIÓN * | J20: No Aplica | L20: ESCALA
L21: Deficiente | M21: Aceptable | N21: Bueno | O21: Excelente
L22: 0% - 60% | M22: 61% - 80% | N22: 81% - 90% | O22: 91% - 100%
C23: ORIGEN DE DATOS NUMERADOR | E23: Base de datos del aplicativo MEDIT a un Clic- Eduvirtual | H23: FRECUENCIA DE LA MEDICIÓN | J23: SEMESTRAL | L23: FRECUENCIA DE RESULTADO | N23: SEMESTRAL
C24: ORIGEN DE DATOS DENOMINADOR | E24: Base de datos del aplicativo MEDIT a un Clic- Eduvirtual
C26: RESULTADOS
J27: ANÁLISIS DE DATOS
J28: PRIMER SEMESTRE: A comparación de la medición anterior se tiene una mejora significativa llegando a un 84% de cumplimiento del indicador, sigue predominando los Tickets de Recuperación de Contraseña como el tema mas solicitado por parte de los estudiantes y los Gestores del Conocimiento y el Aprendizaje y en el inicio de semestre con mas de 5000 Tickets en menos de un mes. Esto es importante recalcar dado que la acción formulada anteriormente dará una mejora del indicador. SEGUNDO SEMESTRE: Se obtiene una gran disminución de los tickets, esto a raíz de la implementación del ingreso único (sin contraseñas), con esto se identifica que la herramienta para las solicitudes esta obsoleta dado que solo media problemas con el ingreso de la plataforma.
J34: ACCIÓN FORMULADA
J35: PRIMER SEMESTRE: Se sigue a la espera de la implementación del SSO de logueo único con la plataforma Office 365, el cual para el periodo académico 2024-1 no se realizo dado que el contrato F-CPS 281 del 2022 tuvo un OTRO SI donde se prorrogo 6 meses mas. Se espera que para el periodo académico 2024-2 los estudiantes y Gestores del Conocimiento y el Aprendizaje cuenten con este útil servicio y esto reduzca las solicitudes a la Oficina de Educación Virtual y a Distancia. SEGUNDO SEMESTRE: Se revisará ajustar el indicador que realmente mida toda la operación del CMA y sus actores, el cual entregue datos tecno educativos para mejorar el despliegue de los periodos académicos.
J41: RESPONSABLE
J42: =E14 -> Jefe de la oficina de Educación Virtual y a Distancia y vicerector académico
C45: PERIODO DE EVALUACIÓN
C46: MES | D46: =IF(J23="MENSUAL","ENERO",IF(J23="TRIMESTRAL","MARZO",IF(J23="SEMESTRAL","JUNIO",IF(J23="ANUAL",YEAR(TODAY()),"")))) -> JUNIO | E46: =IF(J23="MENSUAL","FEBRERO",IF(J23="TRIMESTRAL","JUNIO",IF(J23="SEMESTRAL","DICIEMBRE",""))) -> DICIEMBRE | F46: =IF(J23="MENSUAL","MARZO",IF(J23="TRIMESTRAL","SEPTIEMBRE","")) ->  | G46: =IF(J23="MENSUAL","ABRIL",IF(J23="TRIMESTRAL","DICIEMBRE","")) ->  | H46: =IF(J23="MENSUAL","MAYO","") ->  | I46: =IF(J23="MENSUAL","JUNIO","") ->  | J46: =IF(J23="MENSUAL","JULIO","") ->  | K46: =IF(J23="MENSUAL","AGOSTO","") ->  | L46: =IF(J23="MENSUAL","SEPTIEMBRE","") ->  | M46: =IF(J23="MENSUAL","OCTUBRE","") ->  | N46: =IF(J23="MENSUAL","NOVIEMBRE","") ->  | O46: =IF(J23="MENSUAL","DICIEMBRE","") -> 
C47: =G18 -> Total de solicitudes tramitadas oportunamente *100 | D47: 9030 | E47: 1957
C48: =G19 -> Total de solicitudes | D48: 10771 | E48: 2368
C49: VALOR | D49: =IFERROR(IF($E$17=1,D47/D48,IF($E$17=2,D47,"")),"") -> 0.8383622691 | E49: 0.8264358108
C50: META PONDERADA | D50: =IF(AND(N23="ANUAL",J23="MENSUAL"),N17/12,IF(AND(N23="ANUAL",J23="TRIMESTRAL"),N17/4,IF(AND(N23="ANUAL",J23="SEMESTRAL"),N17/2,IF(AND(N23="ANUAL",J23="ANUAL"),N17,IF(AND(N23="SEMESTRAL",J23="MENSUAL"),N17/6,IF(AND(N23="SEMESTRAL",J23="TRIMESTRAL"),N17/2,IF(AND(N23="SEMESTRAL",J23="SEMESTRAL"),N17,IF(AND(N23="SEMESTRAL",J23="ANUAL"),"REVISAR FRECUENCIAS",IF(AND(N23="TRIMESTRAL",J23="MENSUAL"),N17/3,IF(AND(N23="TRIMESTRAL",J23="TRIMESTRAL"),N17,IF(AND(N23="TRIMESTRAL",J23="SEMESTRAL"),"REVISAR FRECUENCIAS",IF(AND(N23="TRIMESTRAL",J23="ANUAL"),"REVISAR FRECUENCIAS",IF(AND(N23="MENSUAL",J23="MENSUAL"),N17,IF(AND(N23="MENSUAL",J23="TRIMESTRAL"),"REVISAR FRECUENCIAS",IF(AND(N23="MENSUAL",J23="SEMESTRAL"),"REVISAR FRECUENCIAS",IF(AND(N23="MENSUAL",J23="ANUAL"),"REVISAR FRECUENCIAS","")))))))))))))))) -> 0.9 | E50: =IF(AND(N23="ANUAL",J23="MENSUAL"),N17/12+D50,IF(AND(N23="ANUAL",J23="TRIMESTRAL"),N17/4+D50,IF(AND(N23="ANUAL",J23="SEMESTRAL"),N17/2+D50,IF(AND(N23="SEMESTRAL",J23="MENSUAL"),N17/6+D50,IF(AND(N23="SEMESTRAL",J23="TRIMESTRAL"),N17/2+D50,IF(AND(N23="SEMESTRAL",J23="SEMESTRAL"),N17,IF(AND(N23="TRIMESTRAL",J23="MENSUAL"),N17/3+D50,IF(AND(N23="TRIMESTRAL",J23="TRIMESTRAL"),N17,IF(AND(N23="MENSUAL",J23="MENSUAL"),N17,""))))))))) -> 0.9 | F50: =IF(AND(N23="ANUAL",J23="MENSUAL"),N17/12+E50,IF(AND(N23="ANUAL",J23="TRIMESTRAL"),N17/4+E50,IF(AND(N23="SEMESTRAL",J23="MENSUAL"),N17/6+E50,IF(AND(N23="SEMESTRAL",J23="TRIMESTRAL"),N17/2,IF(AND(N23="TRIMESTRAL",J23="MENSUAL"),N17/3+E50,IF(AND(N23="TRIMESTRAL",J23="TRIMESTRAL"),N17,IF(AND(N23="MENSUAL",J23="MENSUAL"),N17,""))))))) ->  | G50: =IF(AND(N23="ANUAL",J23="MENSUAL"),N17/12+F50,IF(AND(N23="ANUAL",J23="TRIMESTRAL"),N17/4+F50,IF(AND(N23="SEMESTRAL",J23="MENSUAL"),N17/6+F50,IF(AND(N23="SEMESTRAL",J23="TRIMESTRAL"),N17/2+F50,IF(AND(N23="TRIMESTRAL",J23="MENSUAL"),N17/3,IF(AND(N23="TRIMESTRAL",J23="TRIMESTRAL"),N17,IF(AND(N23="MENSUAL",J23="MENSUAL"),N17,""))))))) ->  | H50: =IF(AND($N$23="ANUAL",$J$23="MENSUAL"),$N$17/12+G50,IF(AND(N23="SEMESTRAL",J23="MENSUAL"),N17/6+G50,IF(AND(N23="TRIMESTRAL",J23="MENSUAL"),N17/3+G50,IF(AND(N23="MENSUAL",J23="MENSUAL"),N17,"")))) ->  | I50: =IF(AND($N$23="ANUAL",$J$23="MENSUAL"),$N$17/12+H50,IF(AND(N23="SEMESTRAL",J23="MENSUAL"),N17/6+H50,IF(AND(N23="TRIMESTRAL",J23="MENSUAL"),N17/3+H50,IF(AND(N23="MENSUAL",J23="MENSUAL"),N17,"")))) ->  | J50: =IF(AND($N$23="ANUAL",$J$23="MENSUAL"),$N$17/12+I50,IF(AND(N23="SEMESTRAL",J23="MENSUAL"),N17/6,IF(AND(N23="TRIMESTRAL",J23="MENSUAL"),N17/3,IF(AND(N23="MENSUAL",J23="MENSUAL"),N17,"")))) ->  | K50: =IF(AND($N$23="ANUAL",$J$23="MENSUAL"),$N$17/12+J50,IF(AND(N23="SEMESTRAL",J23="MENSUAL"),N17/6+J50,IF(AND(N23="TRIMESTRAL",J23="MENSUAL"),N17/3+J50,IF(AND(N23="MENSUAL",J23="MENSUAL"),N17,"")))) ->  | L50: =IF(AND($N$23="ANUAL",$J$23="MENSUAL"),$N$17/12+K50,IF(AND(N23="SEMESTRAL",J23="MENSUAL"),N17/6+K50,IF(AND(N23="TRIMESTRAL",J23="MENSUAL"),N17/3+K50,IF(AND(N23="MENSUAL",J23="MENSUAL"),N17,"")))) ->  | M50: =IF(AND($N$23="ANUAL",$J$23="MENSUAL"),$N$17/12+L50,IF(AND(N23="SEMESTRAL",J23="MENSUAL"),N17/6+L50,IF(AND(N23="TRIMESTRAL",J23="MENSUAL"),N17/3,IF(AND(N23="MENSUAL",J23="MENSUAL"),N17,"")))) ->  | N50: =IF(AND($N$23="ANUAL",$J$23="MENSUAL"),$N$17/12+M50,IF(AND(N23="SEMESTRAL",J23="MENSUAL"),N17/6+M50,IF(AND(N23="TRIMESTRAL",J23="MENSUAL"),N17/3+M50,IF(AND(N23="MENSUAL",J23="MENSUAL"),N17,"")))) ->  | O50: =IF(AND($N$23="ANUAL",$J$23="MENSUAL"),$N$17/12+N50,IF(AND(N23="SEMESTRAL",J23="MENSUAL"),N17/6+N50,IF(AND(N23="TRIMESTRAL",J23="MENSUAL"),N17/3+N50,IF(AND(N23="MENSUAL",J23="MENSUAL"),N17,"")))) -> 
C52: NIVEL DE SEGREGACIÓN *
C53: UNIDAD SEGREGADA (Ej. Facultad, Programa Académico, Área) | G53: RESULTADO | K53: ANÁLISIS DE DATOS SEGREGADO
C62: Diagonal 18 No. 20-29 Fusagasugá – Cundinamarca Teléfono (601) 8281483 Línea Gratuita 018000180414 www.ucundinamarca.edu.co E-mail: info@ucundinamarca.edu.co NIT: 890.680.062-2
C63: Documento controlado por el Sistema de Gestión de la Calidad Asegúrese que corresponde a la última versión consultando el Portal Institucional
G72: Estratégico | J72: Eficacia
G73: Misional | J73: Eficiencia
G74: Apoyo | J74: Acreditación
G75: Seguimiento, Medición, Análisis y Evaluación | J75: Positiva
G76: Direccionamiento Estratégico | J76: Negativa
G77: Planeación Institucional | J77: Por Unidad Regional
G78: Proyectos Especiales y Relaciones Interinstitucionales | J78: Por Facultad
G79: Sistemas Integrados | J79: Por Programa Académico
G80: Autoevaluación y Acreditación | J80: Por área
G81: Comunicaciones | J81: Por Laboratorio
G82: Formación y Aprendizaje | J82: Otros
G83: Ciencia, Tecnología e Innovación | J83: No Aplica
G84: Interacción Social Universitaria
G85: Bienestar Universitario
G86: Admisiones y Registro
G87: Graduados
G88: Dialogando con el Mundo
G89: Talento Humano
G90: Jurídica
G91: Financiera
G92: Sistemas y Tecnología
G93: Bienes y Servicios
G94: Documental
G95: Apoyo Académico
G96: Control Interno
G97: Control Disciplinario
G98: Servicio de Atención al Ciudadano

Sheet INS-6
B2: REGRESAR
E5: MACROPROCESO ESTRATÉGICO | M5: CÓDIGO: ESGr027
E6: PROCESO GESTIÓN SISTEMAS INTEGRADOS - CALIDAD | M6: VERSIÓN: 8
E7: MATRIZ DE MEDICIÓN Y SEGUIMIENTO A LOS PROCESOS DE GESTIÓN | M7: VIGENCIA: 2023-07-28
M8: PÁGINA: 6 de 7
C10: FICHA DE INDICADOR
C12: MACROPROCESO | E12: Misional | I12: NOMBRE DEL INDICADOR | K12: Tasa de graduación efectiva
C13: PROCESO GESTIÓN | E13: Formación y Aprendizaje
C14: RESPONSABLE DE MEDICIÓN | E14: Oficina de Desarrollo Académico
C16: 1. COMPORTAMIENTO DE INDICADOR
C17: CLASIFICACIÓN DE LA MEDICIÓN | E17: 1 | H17: TIPO DE INDICADOR | J17: Acreditación | L17: META | N17: 0.8
C18: FORMULA | E18: NUMERADOR | G18: Número de graduados oportunos por programa académico (Plan de estudios y/o Ruta de aprendizaje + 1 semestre) * 100 | L18: UNIDAD DE MEDIDA | N18: Porcentaje
E19: DENOMINADOR | G19: Total de estudiantes graduados en el semestre por programa académico
C20: TENDENCIA | E20: Positiva | H20: NIVEL DE SEGREGACIÓN * | J20: Por Programa Académico | L20: ESCALA
L21: Deficiente | M21: Aceptable | N21: Bueno | O21: Excelente
L22: 0 - 60% | M22: 60.1% - 70% | N22: 70.1% - 80% | O22: 80.1% - 100%
C23: ORIGEN DE DATOS NUMERADOR | E23: Reporte aplicativo institucional | H23: FRECUENCIA DE LA MEDICIÓN | J23: SEMESTRAL | L23: FRECUENCIA DE RESULTADO | N23: SEMESTRAL
C24: ORIGEN DE DATOS DENOMINADOR | E24: Reporte aplicativo institucional
C26: RESULTADOS
J27: ANÁLISIS DE DATOS
J28: Para la vigencia 2024-1 se obtiene un 82% de graduación efectiva entendida como el número de estudiantes graduados en los periodos definidos para el pénsum, plan de estudios o ruta de aprendizaje hasta más 1 periodo *100 sobre el número total de estudiantes graduados para el programa, lo anterior teniendo en cuenta el artículo 7, numeral 10 del acuerdo 027 y artículo 42 del Acuerdo 010 de 2006 del Consejo Superior y que define las causales para la pérdida de condición de estudiante, cabe resaltar que se evidenciaron casos de estudiantes que tomaron un tiempo superior a lo anteriormente mencionado. En cuanto a los estudiantes que obtuvieron su grado fuera de los tiempos óptimos estimados, se pudo identificar que los motivos o causales principales son registro límite de créditos académicos por no aprobación del logro del aprendizaje, aplazamiento de periodos académicos, perdida de núcleos temáticos o CADIS, , retraso en la inscripción, desarrollo y finalización de la opción de grado, lo anterior en el marco del Acuerdo 004 del 08 de mayo de 2018 “Por el cual se establece la vigencia del acuerdo No. 003 del 6 de marzo de 2018 “por el cual se reglamenta el artículo 42 del acuerdo No. 010 del 12 de julio del 2006 “Por el cual se expide el reglamento estudiantil para los programas de pregrado de la universidad de Cundinamarca” Emanado del Consejo académico” – Comunicado del Consejo Académico 007 de 2021 "Amnistía académica” con lo cual egresados retomaron sus estudios sin importar la vigencia de ingreso a la institución para finalizar su proceso de grado. Para el periodo 2024-2, a nivel Institucional se logró el 81% de graduación oportuna, entendido como el porcentaje de estudiantes que lograron graduarse dentro del tiempo establecido en el plan de estudios o ruta de aprendizaje, más un periodo adicional, calculado según la fórmula: Graduación efectiva: (No. estudiantes graduados en el tiempo estipulado / No. Total de estudiantes graduados del programa) * 100. Este resultado se fundamenta en los lineamientos del artículo 7, numeral 10 del Acuerdo 027, y el artículo 42 del Acuerdo 010 de 2006 del Consejo Superior de la Universidad de Cundinamarca, que establecen las condiciones para la pérdida de la calidad de estudiante. Cabe destacar que el 19% de los graduados excedió el tiempo promedio estipulado para una graduación oportuna, según las condiciones de cada programa académico. Con relación a los estudiantes que se graduaron fuera de los tiempos óptimos, se identificaron las siguientes causales principales: 1. Límite de créditos académicos no aprobados por falta del logro en los aprendizajes. 2. Aplazamiento de periodos académicos. 3. Pérdida de núcleos temáticos o CADIS. 4. Retrasos en la inscripción, desarrollo y finalización de la opción de grado. Estas situaciones se analizaron a la luz del Acuerdo 004 del 8 de mayo de 2018, que reglamenta el artículo 42 del Acuerdo 010 de 2006, y del Comunicado del Consejo Académico 007 de 2021 sobre la “Amnistía Académica”, el cual permitió a los egresados retomar sus estudios, sin importar la vigencia de ingreso a la Universidad, para completar su proceso de grado.
J34: ACCIÓN FORMULADA
J35: 2024-1: Se evaluará desde los programas académicos las acciones que se están tomando para asegurar los procesos de graduación oportuna en los estudiantes, lo cual permita definir una ruta de seguimiento para el aseguramiento en los tiempos de conformidad con los planes de estudio y/o rutas de aprendizaje de cada programa académico. Adicional a esto, desde la Oficina de Desarrollo Académico se emite cada periodo académico la alerta temprana sobre perdida del núcleo temático "Trabajo de grado" y/o campo de aprendizaje "Opción de Grado" como estrategia para garantizar el éxito académico de los estudiantes. 2024-2: Cada programa académico realizará una evaluación de las acciones implementadas para garantizar la graduación oportuna de los estudiantes. Esto permitirá definir una ruta de seguimiento que asegure el cumplimiento de los tiempos establecidos en los planes de estudio y/o rutas de aprendizaje correspondientes. Además, desde la Oficina de Desarrollo Académico se emitirá alerta temprana sobre la pérdida del núcleo temático "Trabajo de Grado" y/o del campo de aprendizaje "Opción de Grado". Esta estrategia busca fortalecer el acompañamiento y garantizar el éxito académico de los estudiantes.
J41: RESPONSABLE
J42: =E14 -> Oficina de Desarrollo Académico
C45: PERIODO DE EVALUACIÓN
C46: MES | D46: =IF(J23="MENSUAL","ENERO",IF(J23="TRIMESTRAL","MARZO",IF(J23="SEMESTRAL","JUNIO",IF(J23="ANUAL",YEAR(TODAY()),"")))) -> JUNIO | E46: =IF(J23="MENSUAL","FEBRERO",IF(J23="TRIMESTRAL","JUNIO",IF(J23="SEMESTRAL","DICIEMBRE",""))) -> DICIEMBRE | F46: =IF(J23="MENSUAL","MARZO",IF(J23="TRIMESTRAL","SEPTIEMBRE","")) ->  | G46: =IF(J23="MENSUAL","ABRIL",IF(J23="TRIMESTRAL","DICIEMBRE","")) ->  | H46: =IF(J23="MENSUAL","MAYO","") ->  | I46: =IF(J23="MENSUAL","JUNIO","") ->  | J46: =IF(J23="MENSUAL","JULIO","") ->  | K46: =IF(J23="MENSUAL","AGOSTO","") ->  | L46: =IF(J23="MENSUAL","SEPTIEMBRE","") ->  | M46: =IF(J23="MENSUAL","OCTUBRE","") ->  | N46: =IF(J23="MENSUAL","NOVIEMBRE","") ->  | O46: =IF(J23="MENSUAL","DICIEMBRE","") -> 
C47: =G18 -> Número de graduados oportunos por programa académico (Plan de estudios y/o Ruta de aprendizaje + 1 semestre) * 100 | D47: 953 | E47: 931
C48: =G19 -> Total de estudiantes graduados en el semestre por programa académico | D48: 1163 | E48: 1143
C49: VALOR | D49: =IFERROR(IF($E$17=1,D47/D48,IF($E$17=2,D47,"")),"") -> 0.8194325021 | E49: =IFERROR(IF($E$17=1,E47/E48,IF($E$17=2,E47,"")),"") -> 0.8145231846
C50: META PONDERADA | D50: =IF(AND(N23="ANUAL",J23="MENSUAL"),N17/12,IF(AND(N23="ANUAL",J23="TRIMESTRAL"),N17/4,IF(AND(N23="ANUAL",J23="SEMESTRAL"),N17/2,IF(AND(N23="ANUAL",J23="ANUAL"),N17,IF(AND(N23="SEMESTRAL",J23="MENSUAL"),N17/6,IF(AND(N23="SEMESTRAL",J23="TRIMESTRAL"),N17/2,IF(AND(N23="SEMESTRAL",J23="SEMESTRAL"),N17,IF(AND(N23="SEMESTRAL",J23="ANUAL"),"REVISAR FRECUENCIAS",IF(AND(N23="TRIMESTRAL",J23="MENSUAL"),N17/3,IF(AND(N23="TRIMESTRAL",J23="TRIMESTRAL"),N17,IF(AND(N23="TRIMESTRAL",J23="SEMESTRAL"),"REVISAR FRECUENCIAS",IF(AND(N23="TRIMESTRAL",J23="ANUAL"),"REVISAR FRECUENCIAS",IF(AND(N23="MENSUAL",J23="MENSUAL"),N17,IF(AND(N23="MENSUAL",J23="TRIMESTRAL"),"REVISAR FRECUENCIAS",IF(AND(N23="MENSUAL",J23="SEMESTRAL"),"REVISAR FRECUENCIAS",IF(AND(N23="MENSUAL",J23="ANUAL"),"REVISAR FRECUENCIAS","")))))))))))))))) -> 0.8 | E50: =IF(AND(N23="ANUAL",J23="MENSUAL"),N17/12+D50,IF(AND(N23="ANUAL",J23="TRIMESTRAL"),N17/4+D50,IF(AND(N23="ANUAL",J23="SEMESTRAL"),N17/2+D50,IF(AND(N23="SEMESTRAL",J23="MENSUAL"),N17/6+D50,IF(AND(N23="SEMESTRAL",J23="TRIMESTRAL"),N17/2+D50,IF(AND(N23="SEMESTRAL",J23="SEMESTRAL"),N17,IF(AND(N23="TRIMESTRAL",J23="MENSUAL"),N17/3+D50,IF(AND(N23="TRIMESTRAL",J23="TRIMESTRAL"),N17,IF(AND(N23="MENSUAL",J23="MENSUAL"),N17,""))))))))) -> 0.8 | F50: =IF(AND(N23="ANUAL",J23="MENSUAL"),N17/12+E50,IF(AND(N23="ANUAL",J23="TRIMESTRAL"),N17/4+E50,IF(AND(N23="SEMESTRAL",J23="MENSUAL"),N17/6+E50,IF(AND(N23="SEMESTRAL",J23="TRIMESTRAL"),N17/2,IF(AND(N23="TRIMESTRAL",J23="MENSUAL"),N17/3+E50,IF(AND(N23="TRIMESTRAL",J23="TRIMESTRAL"),N17,IF(AND(N23="MENSUAL",J23="MENSUAL"),N17,""))))))) ->  | G50: =IF(AND(N23="ANUAL",J23="MENSUAL"),N17/12+F50,IF(AND(N23="ANUAL",J23="TRIMESTRAL"),N17/4+F50,IF(AND(N23="SEMESTRAL",J23="MENSUAL"),N17/6+F50,IF(AND(N23="SEMESTRAL",J23="TRIMESTRAL"),N17/2+F50,IF(AND(N23="TRIMESTRAL",J23="MENSUAL"),N17/3,IF(AND(N23="TRIMESTRAL",J23="TRIMESTRAL"),N17,IF(AND(N23="MENSUAL",J23="MENSUAL"),N17,""))))))) ->  | H50: =IF(AND($N$23="ANUAL",$J$23="MENSUAL"),$N$17/12+G50,IF(AND(N23="SEMESTRAL",J23="MENSUAL"),N17/6+G50,IF(AND(N23="TRIMESTRAL",J23="MENSUAL"),N17/3+G50,IF(AND(N23="MENSUAL",J23="MENSUAL"),N17,"")))) ->  | I50: =IF(AND($N$23="ANUAL",$J$23="MENSUAL"),$N$17/12+H50,IF(AND(N23="SEMESTRAL",J23="MENSUAL"),N17/6+H50,IF(AND(N23="TRIMESTRAL",J23="MENSUAL"),N17/3+H50,IF(AND(N23="MENSUAL",J23="MENSUAL"),N17,"")))) ->  | J50: =IF(AND($N$23="ANUAL",$J$23="MENSUAL"),$N$17/12+I50,IF(AND(N23="SEMESTRAL",J23="MENSUAL"),N17/6,IF(AND(N23="TRIMESTRAL",J23="MENSUAL"),N17/3,IF(AND(N23="MENSUAL",J23="MENSUAL"),N17,"")))) ->  | K50: =IF(AND($N$23="ANUAL",$J$23="MENSUAL"),$N$17/12+J50,IF(AND(N23="SEMESTRAL",J23="MENSUAL"),N17/6+J50,IF(AND(N23="TRIMESTRAL",J23="MENSUAL"),N17/3+J50,IF(AND(N23="MENSUAL",J23="MENSUAL"),N17,"")))) ->  | L50: =IF(AND($N$23="ANUAL",$J$23="MENSUAL"),$N$17/12+K50,IF(AND(N23="SEMESTRAL",J23="MENSUAL"),N17/6+K50,IF(AND(N23="TRIMESTRAL",J23="MENSUAL"),N17/3+K50,IF(AND(N23="MENSUAL",J23="MENSUAL"),N17,"")))) ->  | M50: =IF(AND($N$23="ANUAL",$J$23="MENSUAL"),$N$17/12+L50,IF(AND(N23="SEMESTRAL",J23="MENSUAL"),N17/6+L50,IF(AND(N23="TRIMESTRAL",J23="MENSUAL"),N17/3,IF(AND(N23="MENSUAL",J23="MENSUAL"),N17,"")))) ->  | N50: =IF(AND($N$23="ANUAL",$J$23="MENSUAL"),$N$17/12+M50,IF(AND(N23="SEMESTRAL",J23="MENSUAL"),N17/6+M50,IF(AND(N23="TRIMESTRAL",J23="MENSUAL"),N17/3+M50,IF(AND(N23="MENSUAL",J23="MENSUAL"),N17,"")))) ->  | O50: =IF(AND($N$23="ANUAL",$J$23="MENSUAL"),$N$17/12+N50,IF(AND(N23="SEMESTRAL",J23="MENSUAL"),N17/6+N50,IF(AND(N23="TRIMESTRAL",J23="MENSUAL"),N17/3+N50,IF(AND(N23="MENSUAL",J23="MENSUAL"),N17,"")))) -> 
C52: NIVEL DE SEGREGACIÓN *
C53: UNIDAD SEGREGADA (Ej. Facultad, Programa Académico, Área) | G53: RESULTADO | K53: ANÁLISIS DE DATOS SEGREGADO
C54: Administración de empresas | G54: =225/252 -> 0.8928571429 | K54: Como se evidencia en el indicador, se logró una graduación efectiva estimada en 10 semestres para plan de estudios y 11 semestres para ruta de aprendizaje considerado un tiempo óptimo para el programa académico; lo anterior se justifica de acuerdo a lo reglamentado en el Acuerdo N° 003 - 2018 "Por el cual se reglamenta el articulo 42 del acuerdo N° 010 del 12 de julio de 2006 " y el Acuerdo del CSU 027 del 2021. El programa académico para el periodo 2024-2, obtuvo el siguiente resultado para cada sede y seccional donde actualmente es ofertado; Chía: 86%. Facatativá: 96%, Girardot: 88%, Ubaté: 69% y Fusagasugá: 80%, los cuales colectivamente aportan al cumplimiento del presente indicador.
C55: Ciencias del Deporte y la Educación Física | G55: =53/60 -> 0.8833333333 | K55: Como se evidencia en el indicador, se logró una graduación efectiva estimada en 11 semestres el cual es considerado un tiempo óptimo para el programa académico; lo anterior se justifica de acuerdo a lo reglamentado en el Acuerdo N° 003 - 2018 "Por el cual se reglamenta el articulo 42 del acuerdo N° 010 del 12 de julio de 2006 " y el Acuerdo del CSU 027 del 2021.
C56: Contaduría Pública | G56: =132/156 -> 0.8461538462 | K56: Como se evidencia en el indicador, se logró una graduación efectiva estimada en 11 semestres el cual es considerado un tiempo óptimo para el programa académico; lo anterior se justifica de acuerdo a lo reglamentado en el Acuerdo N° 003 - 2018 "Por el cual se reglamenta el articulo 42 del acuerdo N° 010 del 12 de julio de 2006 " y el Acuerdo del CSU 027 del 2021. El programa académico para el periodo 2024-2, obtuvo el siguiente resultado para cada sede y seccional donde actualmente es ofertado; Chía: 89%. Facatativá: 89%, Ubaté: 90% y Fusagasugá: 91%, los cuales colectivamente aportan al cumplimiento del presente indicador.
C57: Enfermería | G57: =23/27 -> 0.8518518519 | K57: Como se evidencia en el indicador, se logró una graduación efectiva estimada en 11 semestres el cual es considerado un tiempo óptimo para el programa académico; lo anterior se justifica de acuerdo a lo reglamentado en el Acuerdo N° 003 - 2018 "Por el cual se reglamenta el articulo 42 del acuerdo N° 010 del 12 de julio de 2006 " y el Acuerdo del CSU 027 del 2021.
C58: Especialización en Procesos Pedagógicos del Entrenamiento Deportivo | G58: =9/9 -> 1 | K58: Como se evidencia en el indicador, se logró una graduación efectiva estimada en 3 semestres el cual es considerado un tiempo óptimo para el programa académico; lo anterior se justifica de acuerdo a lo reglamentado en el Acuerdo N° 003 - 2018 "Por el cual se reglamenta el articulo 42 del acuerdo N° 010 del 12 de julio de 2006 " y el Acuerdo del CSU 027 del 2021.
C59: Especialización en Gerencia para el Desarrollo Organizacional | G59: =118/118 -> 1 | K59: Como se evidencia en el indicador, se logró una graduación efectiva estimada en 3 semestres el cual es considerado un tiempo óptimo para el programa académico; lo anterior se justifica de acuerdo a lo reglamentado en el Acuerdo N° 003 - 2018 "Por el cual se reglamenta el articulo 42 del acuerdo N° 010 del 12 de julio de 2006 " y el Acuerdo del CSU 027 del 2021.
C60: Especialización en Educación Ambiental y Desarrollo de la Comunidad | G60: =1/1 -> 1 | K60: Como se evidencia en el indicador, se logró una graduación efectiva estimada en 3 semestres el cual es considerado un tiempo óptimo para el programa académico; lo anterior se justifica de acuerdo a lo reglamentado en el Acuerdo N° 003 - 2018 "Por el cual se reglamenta el articulo 42 del acuerdo N° 010 del 12 de julio de 2006 " y el Acuerdo del CSU 027 del 2021.
C61: Especialización en Gestión de Sistemas de Información Gerencial | G61: =43/43 -> 1 | K61: Como se evidencia en el indicador, se logró una graduación efectiva estimada en 3 semestres el cual es considerado un tiempo óptimo para el programa académico; lo anterior se justifica de acuerdo a lo reglamentado en el Acuerdo N° 003 - 2018 "Por el cual se reglamenta el articulo 42 del acuerdo N° 010 del 12 de julio de 2006 " y el Acuerdo del CSU 027 del 2021.
C62: Especialización en negocios y comercio electrónico | G62: 0 | K62: No reporta graduados en el periodo 2024-2
C63: Especialización en Nutrición y Alimentación Animal | G63: 0 | K63: No reporta graduados en el periodo 2024-2
C64: Ingeniería Agronómica | G64: =40/50 -> 0.8 | K64: Como se evidencia en el indicador, se logró una graduación efectiva estimada en 10 semestres para plan de estudios y 11 semestres para ruta de aprendizaje considerado un tiempo óptimo para el programa académico; lo anterior se justifica de acuerdo a lo reglamentado en el Acuerdo N° 003 - 2018 "Por el cual se reglamenta el articulo 42 del acuerdo N° 010 del 12 de julio de 2006 " y el Acuerdo del CSU 027 del 2021 El programa académico para el periodo 2024-2, obtuvo el siguiente resultado para cada sede y seccional donde actualmente es ofertado; Facatativá: 83% y Fusagasugá: 100% los cuales colectivamente aportan a la medición del presente indicador.
C65: Ingeniería Ambiental | G65: =22/40 -> 0.55 | K65: Como se evidencia en el indicador, no se logró una graduación efectiva estimada en 11 semestres el cual es considerado un tiempo óptimo para el programa académico; lo anterior debido a que los estudiantes requirieron mayor dedicación de tiempo para la finalización de su plan de estudios, los motivos o causales son relacionados a continuación; registro límite de créditos académicos por no aprobación del logro del aprendizaje, perdida reiterativa de núcleos de temáticos, y aplazamiento de periodos académicos. El programa académico para el periodo 2024-2, obtuvo el siguiente resultado para cada sede y seccional donde actualmente es ofertado; Facatativá: 52% y Girardot: 58%, los cuales colectivamente aportan a la medición del presente indicador.
C66: Ingeniería de Sistemas | G66: =100/134 -> 0.7462686567 | K66: Como se evidencia en el indicador, no se logró una graduación efectiva estimada en 10 semestres para plan de estudios y 11 semestres para ruta de aprendizaje el cual es considerado un tiempo óptimo para el programa académico; lo anterior debido a que los estudiantes requirieron mayor dedicación de tiempo para la finalización de su ruta o plan de estudios, los motivos o causales son relacionados a continuación; registro límite de créditos académicos por no aprobación del logro del aprendizaje, perdida reiterativa de campos de aprendizaje o núcleos de temáticos y aplazamiento de periodos académicos. El programa académico para el periodo 2024-2, obtuvo el siguiente resultado para cada sede y seccional donde actualmente es ofertado; Chía: 78%. Facatativá: 79%, Ubaté: 65% y Fusagasugá: 81%, los cuales colectivamente aportan al cumplimiento del presente indicador.
C67: Ingeniería Electrónica | G67: =21/33 -> 0.6363636364 | K67: Como se evidencia en el indicador, no se logró una graduación efectiva estimada en 11 semestres el cual es considerado tiempo óptimo para el programa académico; lo anterior debido a que los estudiantes requirieron mayor dedicación de tiempo para la finalización de su plan de estudios, los motivos o causales son relacionados a continuación; perdida reiterativa de núcleos temáticos, así como, inscripción de trabajo de grado hasta por 7 veces consecutivas. Lo anterior se justifica de acuerdo a lo reglamentado en el Acuerdo N° 003 - 2018 "Por el cual se reglamenta el articulo 42 del acuerdo N° 010 del 12 de julio de 2006 " y el Acuerdo del CSU 027 del 2021."
C68: Ingeniería Industrial | G68: =59/70 -> 0.8428571429 | K68: Como se evidencia en el indicador, se logró una graduación efectiva estimada en 11 semestres el cual es considerado un tiempo óptimo para el programa académico; lo anterior se justifica de acuerdo a lo reglamentado en el Acuerdo N° 003 - 2018 "Por el cual se reglamenta el articulo 42 del acuerdo N° 010 del 12 de julio de 2006 " y el Acuerdo del CSU 027 del 2021.
C69: Licenciatura en Ciencias Sociales | G69: =5/10 -> 0.5 | K69: Como se evidencia en el indicador, no se logró una graduación efectiva estimada en 11 semestres el cual es considerado un tiempo óptimo para el programa académico; debido a que los estudiantes requirieron mayor dedicación de tiempo para la finalización de su plan de estudios, los motivos causales son relacionados a continuación; tardanza en la finalización de trabajo de grado, procesos de asimilación e inactivación por mas de un semestre para la finalización del plan de estudios. Lo anterior se justifica de acuerdo a lo reglamentado en el Acuerdo N° 003 - 2018 "Por el cual se reglamenta el articulo 42 del acuerdo N° 010 del 12 de julio de 2006 ".
C70: Licenciatura en Educación Básica con Énfasis en Educación Física Recreación y Deporte | G70: =2/9 -> 0.2222222222 | K70: Como se evidencia en el indicador, no se logró una graduación efectiva estimada en 11 semestres el cual es considerado un tiempo óptimo para el programa académico; debido a que los estudiantes requirieron mayor dedicación de tiempo para la finalización de su plan de estudios, el motivo principal está relacionado con la perdida reiterativa de núcleos temáticos durante el desarrollo del plan de estudios. Lo anterior se justifica de acuerdo a lo reglamentado en el Acuerdo N° 003 - 2018 "Por el cual se reglamenta el articulo 42 del acuerdo N° 010 del 12 de julio de 2006 ".
C71: Licenciatura en Educación Básica con Énfasis en Humanidades, Lengua Castellana e Ingles | G71: 0 | K71: No reporta graduados en el periodo 2024-2
C72: Licenciatura en Matemáticas | G72: =0/2 -> 0 | K72: No reporta graduados en el periodo 2024-2
C73: Maestría en Ciencias Ambientales | G73: =1/1 -> 1 | K73: Como se evidencia en el indicador, se logró una graduación efectiva estimada en 5 semestres el cual es considerado un tiempo óptimo para el programa académico; lo anterior se justifica de acuerdo a lo reglamentado en el Acuerdo N° 003 - 2018 "Por el cual se reglamenta el articulo 42 del acuerdo N° 010 del 12 de julio de 2006 " y el Acuerdo del CSU 027 del 2021.
C74: Maestría en Educación | G74: =18/19 -> 0.9473684211 | K74: Como se evidencia en el indicador, se logró una graduación efectiva estimada en 5 semestres el cual es considerado un tiempo óptimo para el programa académico; lo anterior se justifica de acuerdo a lo reglamentado en el Acuerdo N° 003 - 2018 "Por el cual se reglamenta el articulo 42 del acuerdo N° 010 del 12 de julio de 2006 " y el Acuerdo del CSU 027 del 2021.
C75: Música | G75: =6/26 -> 0.2307692308 | K75: Como se evidencia en el indicador, no se logró una graduación efectiva estimada en 11 semestres el cual es considerado un tiempo óptimo para el programa académico; debido a que los estudiantes requirieron mayor dedicación de tiempo para la finalización de su plan de estudios, los motivos o causales son relacionados a continuación; inscripción de trabajo hasta por cuatro semestres, perdida reiterativa y cancelación de núcleos temáticos y aplazamiento de periodos académicos. Lo anterior se justifica de acuerdo a lo reglamentado en el Acuerdo N° 003 - 2018 "Por el cual se reglamenta el articulo 42 del acuerdo N° 010 del 12 de julio de 2006 ".
C76: Psicología | G76: =16/27 -> 0.5925925926 | K76: Como se evidencia en el indicador, no se logró una graduación efectiva estimada en 11 semestres el cual es considerado tiempo óptimo para el programa académico; lo anterior debido a que los estudiantes requirieron mayor dedicación de tiempo para la finalización de su plan de estudios, los motivos o causales son relacionados a continuación; perdida reiterativa de núcleos temáticos, así como, inscripción de trabajo de grado. Lo anterior se justifica de acuerdo a lo reglamentado en el Acuerdo N° 003 - 2018 "Por el cual se reglamenta el articulo 42 del acuerdo N° 010 del 12 de julio de 2006 " y el Acuerdo del CSU 027 del 2021."
C77: Tecnología en Cartografía | G77: =6/6 -> 1 | K77: Como se evidencia en el indicador, se logró una graduación efectiva estimada en 7 semestres el cual es considerado un tiempo óptimo para el programa académico; lo anterior se justifica de acuerdo a lo reglamentado en el Acuerdo N° 003 - 2018 "Por el cual se reglamenta el articulo 42 del acuerdo N° 010 del 12 de julio de 2006 " y el Acuerdo del CSU 027 del 2021.
C78: Tecnología en Desarrollo de Software | G78: =5/5 -> 1 | K78: Como se evidencia en el indicador, se logró una graduación efectiva estimada en 7 semestres el cual es considerado un tiempo óptimo para el programa académico; lo anterior se justifica de acuerdo a lo reglamentado en el Acuerdo N° 003 - 2018 "Por el cual se reglamenta el articulo 42 del acuerdo N° 010 del 12 de julio de 2006 " y el Acuerdo del CSU 027 del 2021.
C79: Tecnología en Gestión Turística y Hotelera | G79: =6/7 -> 0.8571428571 | K79: Como se evidencia en el indicador, se logró una graduación efectiva estimada en 7 semestres el cual es considerado un tiempo óptimo para el programa académico; lo anterior se justifica de acuerdo a lo reglamentado en el Acuerdo N° 003 - 2018 "Por el cual se reglamenta el articulo 42 del acuerdo N° 010 del 12 de julio de 2006 " y el Acuerdo del CSU 027 del 2021.
C80: Zootecnia | G80: =16/40 -> 0.4 | K80: Como se evidencia en el indicador, no se logró una graduación efectiva estimada en 10 semestres para plan de estudios y 11 semestres para ruta de aprendizaje, considerado un tiempo óptimo para el programa académico; lo anterior debido a que los estudiantes requirieron mayor dedicación de tiempo para la finalización de su plan de estudios y/o ruta de aprendizaje, los motivos o causales son relacionados a continuación; perdida reiterativa de núcleos temáticos, cancelación de núcleos temáticos y retraso para la finalización de trabajo de grado. Lo anterior se justifica de acuerdo a lo reglamentado en el Acuerdo N° 003 - 2018 "Por el cual se reglamenta el articulo 42 del acuerdo N° 010 del 12 de julio de 2006 " y el Acuerdo del CSU 027 del 2021. El programa académico para el periodo 2024-2, obtuvo el siguiente resultado para cada sede y seccional donde actualmente es ofertado; Ubaté: 33% y Fusagasugá: 87%, los cuales colectivamente aportan a la medición del presente indicador.
G89: Estratégico | J89: Eficacia
G90: Misional | J90: Eficiencia
G91: Apoyo | J91: Acreditación
G92: Seguimiento, Medición, Análisis y Evaluación | J92: Positiva
G93: Direccionamiento Estratégico | J93: Negativa
G94: Planeación Institucional | J94: Por Unidad Regional
G95: Proyectos Especiales y Relaciones Interinstitucionales | J95: Por Facultad
G96: Sistemas Integrados | J96: Por Programa Académico
G97: Autoevaluación y Acreditación | J97: Por área
G98: Comunicaciones | J98: Por Laboratorio
G99: Formación y Aprendizaje | J99: Otros
G100: Ciencia, Tecnología e Innovación | J100: No Aplica
G101: Interacción Social Universitaria
G102: Bienestar Universitario
G103: Admisiones y Registro
G104: Graduados
G105: Dialogando con el Mundo
G106: Talento Humano
G107: Jurídica
G108: Financiera
G109: Sistemas y Tecnología
G110: Bienes y Servicios
G111: Documental
G112: Apoyo Académico
G113: Control Interno
G114: Control Disciplinario
G115: Servicio de Atención al Ciudadano

Sheet ACTUALIZACIONES
C2: MACROPROCESO ESTRATÉGICO | E2: CÓDIGO: ESGr027
C3: PROCESO GESTIÓN SISTEMAS INTEGRADOS - CALIDAD | E3: VERSIÓN: 8
C4: MATRIZ DE MEDICIÓN Y SEGUIMIENTO A LOS PROCESOS DE GESTIÓN | E4: VIGENCIA: 2023-07-28
E5: PÁGINA: 7 de 7
B7: CONTROL DE ACTUALIZACIONES
B8: FECHA | C8: DESCRIPCIÓN DE LA ACTUALIZACIÓN | D8: RESPONSABLE | E8: CARGO
B9: 2020-03-05 | C9: Para la vigencia 2020 se suprimen los indicadores MFA6, MFA7, MFA8 y MFA9 debido a que los mismos presentan medición por plan de acción, con base en lo anterior, se busca evitar la duplicidad de la información; se realizaron ajustes a la meta del indicador MFA10; se agregaron los indicadores MFA12, MFA13, MFA14, MFA15 y MFA16. | D9: María Eulalia Buenahora Ochoa | E9: Vicerrectoría Académica
B10: 2020-08-03 | C10: Por determinación de la Comisión de Acreditación en sesión ordinaria del mes de Julio, el indicador MIU-5, pasa a ser responsabilidad de medición del proceso de Formación y Aprendizaje, ya que mide aspectos relevantes de Acreditación y su aseguramiento está en los programas Académicos. De igual manera, se tomó la decisión de asignar el indicador de "Usabilidad de Software" al proceso de Formación y Aprendizaje, ya que éste se había planteado al principio de la vigencia 2020 medir por parte del proceso de Apoyo Académico, pero por falta de consenso entre los involucrados y falta de disponibilidad de la fuente de datos, no se había aprobado su medición. | D10: Jaime Elder Acosta Ramírez | E10: Coordinador de Calidad
B11: 2021-05-25 | C11: Se trasladan los indicadores AAA-11 y AAA-12 previa aprobación por cuerpos colegiados de la Universidad, se agregan a MFA-18 y MFA-19 respectivamente; se realizan ajustes de formulas a los indicadores MFA-12, MFA-14 y MFA-15. | D11: María Eulalia Buenahora Ochoa | E11: Vicerrectoría Académica
B12: 2022-04-01 | C12: Se suprime el indicador MFA-10 "SABER PRO" toda vez que la medición a través del Sistema de Gestión de la Calidad esta generando duplicidad con la medición que tiene que reportar la Oficina de Desarrollo Académico mediante plan de acción. Se suprime el indicador MFA-12 "Oportunidad en la asignación de las aulas virtuales" toda vez que el proceso sistematizo la actividad, por ende, la asignación de aulas virtuales es automática y de forma masiva lo cual ya no permite medir la oportunidad de asignación. Se identifica el indicador MFA-20 "Oportunidad en la atención de solicitudes" asignado a la Oficina de Educación Virtual y a Distancia. | D12: Víctor Hugo Londoño Aguirre | E12: Vicerrector Académico
B13: 2023-12-07 | C13: Se actualiza la meta del indicador MFA13, para aumentar el numero de profesores con dedicación tiempo completo, para pregrado y posgrado de 490 a 600 profesores. Se ajusta el indicador MFA14, dando alcance para incluir dentro de la medición las especializaciones ofertadas en la Institución, semestrales y trimestrales. Nota: se deberá realizar la medición segregada, por programa acadèmico. Se actualiza la meta del indicadaor MFA16, en la medicion de la relacion de resultados de aprendizaje, que pasa del 89% al 90%, para la vigencia 2023. Se realiza ejercicio de planificación de actividades, identificación de recursos, tiempos y responsables en la consecución de los objetivos medidos a través de los indicadores del proceso. Se ajusta la meta para el indicador MFA20, para la oportunidad en la atencion de solicitudes de la Oficina de Educación Virtual y a Distancia, generqando un ambiente retador pra el proceso para la vigencia 2023 y se ajusta la redacción para sesgar el mismo al servicio del CMA digital. Se realiza la actualización para transferir los indicadores identificados, a la Dirección de Interacción social Universitaria (MFA-17) y la Unidad de Apoyo Académico (MFA-18, MFA-19) para realizar la medición y analisis de estos desde lasdependencias relacionadas. Se realiza ejercicio de planificación de actividades, identificación de recursos, tiempos y responsables en la consecución de los objetivos medidos a través de los indicadores del proceso. | D13: Víctor Hugo Londoño Aguirre | E13: Vicerrector Académico
B26: Diagonal 18 No. 20-29 Fusagasugá – Cundinamarca Teléfono (601) 8281483 Línea Gratuita 018000180414 www.ucundinamarca.edu.co E-mail: info@ucundinamarca.edu.co NIT: 890.680.062-2
B29: Documento controlado por el Sistema de Gestión de la Calidad Asegúrese que corresponde a la última versión consultando el Portal Institucional

Sheet ITEM (hidden)
A1: MENSUAL | C1: NÚMERO
A2: TRIMESTRAL | C2: PORCENTAJE
A3: SEMESTRAL
A4: ANUAL
